Workbook

Sheet Template (hidden)
C2: Property Description Page

Sheet AppData (hidden)

Sheet Lists
C2: List
D6: Report Instructions | G6: Select Trades For Your Job Instructions | I6: Exterior Options Instructions | L6: Interior Options Instructions | O6: Measurements Instructions
D7: Use the list below to choose which reports you will be exporting to a PDF document. By entering an 'x' in the "Include in Print" column next to the report will it add that specific worksheet to the report. Please scroll down to see landscape and other structures lists. | G7: Use the list below to add trades for your project. If you don't see your trade on the list below, simply add the trade and it will populate on the drop down lists on the following worksheets. | I7: Use the list below to add exterior categories for your "Exterior" worksheet options. Items listed below will populate in the drop down menus on the "Exterior" worksheet. | L7: Use the list below to set up your interior categories for your "Interior" worksheet options. Items listed below will populate in the drop down menus on the "Interior" worksheet. | O7: Use the list below to set up all your units of measurement. Any units of measurement listed below will populate on the drop down menu on any estimating worksheets.
D17: Select Workshets For Report | G17: Select Trades For Your Job | I17: Exterior Options | L17: Interior Options | O17: Measurements
D18: Worksheet Name | E18: Include In Print | G18: Trades | I18: Section | J18: Sub Category | L18: Section | M18: Sub Category | O18: Unit measurements: | P18: Abrv
D19: Lists | G19: General Conditions | I19: Decks | L19: Master Bath | M19: Ceilings | O19: Square Feet - SF | P19: SF
D20: Property Description | E20: X | G20: Demolition and Site Work | I20: Floor Framing | L20: Master Bath | M20: Walls | O20: Cubic Yards - CY | P20: CY
D21: General Conditions | E21: X | G21: Concrete/Masonry | I21: Garage | J21: Ceiling | L21: Master Bath | M21: Finish Carpentry | O21: Linear Feet - LF | P21: LF
D22: Utilities | E22: X | G22: Rough Carpentry | I22: Garage | J22: Walls | L22: Master Bath | M22: Doors/Windows/Trim | O22: Day - Da | P22: DA
D23: Foundation | E23: X | G23: Finish Carpentry | I23: Garage | J23: Finish Carpentry | L23: Master Bath | M23: Floor Covering | O23: Each - Ea | P23: EA
D24: AppLists | E24: X | G24: Doors and Windows | I24: Garage | J24: Doors/Windows/Trim | L24: Master Bath | M24: Electrical | O24: Month - Mo | P24: MO
D25: Exterior | E25: X | G25: Drywall and Paint | I25: Garage | J25: Plumbing/HVAC | L25: Master Bath | M25: Plumbing | O25: Square Yard - SY | P25: SY
D26: Interior | E26: X | G26: Insulation | I26: Garage | J26: Electrical | L26: Master Bath | M26: Cabinetry/Countertops | O26: Week - Wk | P26: WK
D27: Exterior Structures | E27: X | G27: Flooring | I27: Insulation | L27: Entry | M27: Ceilings | O27: Sheet - Sh | P27: SH
D28: Materials | E28: X | G28: Bathrooms | I28: Landscape | L28: Entry | M28: Walls
D29: Labor | E29: x | G29: Kitchen and Appliances | I29: Main Level Framing | L29: Entry | M29: Finish Carpentry
D30: Trade Summary | E30: x | G30: HVAC | I30: Patios/Walkways | L30: Entry | M30: Doors/Windows/Trim
D31: 16D | E31: x | G31: Plumbing - Includes septic and well | I31: Roof | L31: Entry | M31: Floor Covering
D32: Report Summary | E32: x | G32: Electrical | I32: Roof Framing | L32: Entry | M32: Finish Electrical
D33: Line Items | G33: Roofing | I33: Siding | L33: Kitchen | M33: Ceilings
D34: Landscape | E34: x | G34: Landscape and Fencing - Includes any pool, fountain and irrigation work. | L34: Kitchen | M34: Walls
L35: Kitchen | M35: Finish Carpentry
L36: Kitchen | M36: Doors/Windows/Trim
L37: Kitchen | M37: Floor Covering
L38: Kitchen | M38: Electrical
L39: Kitchen | M39: Plumbing
L40: Kitchen | M40: Cabinetry/Countertops
L41: Kitchen | M41: Appliances
L42: Bedroom1 | M42: Ceilings
L43: Bedroom1 | M43: Walls
L44: Bedroom1 | M44: Finish Carpentry
L45: Bedroom1 | M45: Doors/Windows/Trim
L46: Bedroom1 | M46: Floor Covering
L47: Bedroom1 | M47: Electrical
L48: Bedroom2 | M48: Ceilings
L49: Bedroom2 | M49: Walls
L50: Bedroom2 | M50: Finish Carpentry
L51: Bedroom2 | M51: Doors/Windows/Trim
L52: Bedroom2 | M52: Floor Covering
L53: Bedroom2 | M53: Electrical
I71: Landscape Instructions | L71: Other Structures Instructions
I72: Use the list below to set up all your landscape options. Any item listed here will populate on the drop down under the "Landscape" worksheet. | L72: Use the list below to set up all your other structures categories. Any items listed here will populate on the drop down under "Other Structures." Other structures is anything not physically attached the the main home. Any detached garage, additional dwelling unit, pool house, etc. should be listed in this worksheet.
I82: Landscape Options | L82: Other Structures Options
I83: Section | J83: Sub Category | L83: Section | M83: Sub Category
I84: Landscape 1 | J84: Sub Land 1 | L84: Additional Dwelling Unit | M84: Ceilings
I85: Landscape 1 | J85: Sub Land 2 | L85: Additional Dwelling Unit | M85: Walls
I86: Landscape 1 | J86: Sub Land 3 | L86: Additional Dwelling Unit | M86: Flooring
I87: Landscape 2 | J87: Sub Land 4 | L87: Additional Dwelling Unit | M87: Doors/Windows/Trim
I88: Landscape 2 | J88: Sub Land 5 | L88: Detached Garage | M88: Doors/Windows/Trim
I89: Landscape 2 | J89: Sub Land 6 | L89: Detached Garage | M89: Electrical
I90: Landscape 3 | J90: Sub Land 7 | L90: Detached Garage | M90: Plumbing
I91: Landscape 3 | J91: Sub Land 8 | L91: Shed | M91: Tool
I92: Landscape 3 | J92: Sub Land 9 | L92: Shed | M92: Storage
I93: Landscape 4 | J93: Sub Land 10 | L93: Shed
I94: Landscape 4 | J94: Sub Land 11 | L94: Shed
I95: Landscape 4 | J95: Sub Land 12
I96: Landscape 5 | J96: Sub Land 13
I97: Landscape 5 | J97: Sub Land 14
I98: Landscape 5 | J98: Sub Land 15

Sheet Job Notes
C2: Images and Notes
D6: Report Notes
G7: Press "Add Image". Select .png, .jpg, .gif, or .tif image file. Image will be added to the spreadsheet below lowest image. Images can be moved and deleted as necessary.
D17: Landscape Notes
D28: Other Structures Notes
D39: Exterior Options Notes
D50: Interior Options Notes
D61: Measurements Notes
D72: Other Notes

Sheet Property Description
C2: BW Estimator
D6: Property Description Page
D8: Property Owner Name: | E8: Bruce Wayne | G8: Phone: | H8: 111-111-1111
D10: Street Address: | E10: 1234 Main Street | G10: Email: | H10: joediddit@joediddit.com
D12: City/State/Zip: | E12: Maintown
D14: Estimator: | E14: BW
D16: Type of Estimate: | E16: New Construction
D18: Local Sales Tax Rate: | E18: 0.09
D20: Overhead | E20: 0.1
D22: Profit | E22: 0.1
D25: BW Builder, Inc.
D28: Instructions:
D29: There are multiple tabs across the bottom that indicate the different categories of this report. By moving the mouse pointer to the bottom two arrows pointing left and right, you can navigate the tabs. By pressing CNTR + Left Click, you will be brought back to the very first tab. By right clicking, you will see a list of all tabs. General Conditions refer to the preparation to build. Drawings, inspections, permits, readying the lot, temporary installations like power and drainage. Sheet Instructions: Step 1 : Choose item Names Step 2: Enter Date performed or purchased Step 3: Choose your Category from drop down Step 4: Choose your Trade from drop down Step 5: Type in your Description into the cell Step 6: Unit selected from drop down to be either number of days, hours or actual physical items bought or used. Step 7: Then enter quantity by keyboard into the cell Step 8: Then enter price by keyboard into the cell

Sheet General Conditions
C2: General Conditions
A5: Excelimate | F5: Note: | G5: General Conditions include the temporary items and items that are preliminary to buildings for example architectural plans.
A6: By Room/Item | F6: Page must be able to be locked and password protected.
D8: Section: | E8: Sub Category: | F8: Item #: | G8: Item Name: | H8: Date: | I8: Category: | J8: Trade: | K8: Description: | L8: Quantity: | M8: Unit: | N8: Unit Price: | O8: Extended Price:
D9: ="General Conditions" -> General Conditions | F9: =IF(tblGeneralConditions[[#This Row],[Item Name:]]="", "", ROW()-8) -> 1 | G9: Dump/Loads | H9: 2020-05-12 | I9: Temporary | J9: Demolition and Site Work | K9: Dumper Loads | L9: 3 | M9: Each | N9: 500 | O9: =+L9*N9 -> 1500
A10: General Conditons | D10: General Conditions | F10: =IF(tblGeneralConditions[[#This Row],[Item Name:]]="", "", ROW()-8) -> 2 | G10: Temporary Fencing | H10: 2020-05-12 | I10: Temporary | J10: Demolition and Site Work | K10: Temporary Chainlink Fence | L10: 750 | M10: LF | N10: 1.5 | O10: =+L10*N10 -> 1125
D11: General Conditions | F11: =IF(tblGeneralConditions[[#This Row],[Item Name:]]="", "", ROW()-8) -> 3 | G11: Architectural Drawings | H11: 2020-05-12 | I11: Professional Fees | J11: General Conditions | K11: Drawing Building Plans | L11: 1 | M11: Each | N11: 15000 | O11: =+L11*N11 -> 15000
D12: General Conditions | F12: =IF(tblGeneralConditions[[#This Row],[Item Name:]]="", "", ROW()-8) -> 4 | G12: Residential Supervisor | H12: 2020-05-12 | I12: Labor | J12: General Conditions | K12: Residential Supervisor | L12: 250 | M12: Hr | N12: 88.96 | O12: =+L12*N12 -> 22240
D13: General Conditions | F13: =IF(tblGeneralConditions[[#This Row],[Item Name:]]="", "", ROW()-8) -> 5 | G13: Soil Engineering | H13: 2020-05-12 | I13: Professional Fees | J13: General Conditions | K13: Soil Testing and Inspections | L13: 1 | M13: Each | N13: 2500 | O13: 2500
D14: General Conditions | F14: =IF(tblGeneralConditions[[#This Row],[Item Name:]]="", "", ROW()-8) -> 6 | G14: Cal Green/Title 24 | H14: 2020-05-12 | I14: Professional Fees | J14: General Conditions | K14: Cal Green Inspections | L14: 1 | M14: Each | N14: 2500 | O14: 2500
D15: General Conditions | F15: =IF(tblGeneralConditions[[#This Row],[Item Name:]]="", "", ROW()-8) -> 7 | G15: Drainage Plan Update | H15: 2020-05-12 | I15: Professional Fees | J15: General Conditions | K15: Civil and Drain Plans | L15: 1 | M15: Each | N15: 2000 | O15: 2000
D16: General Conditions | F16: =IF(tblGeneralConditions[[#This Row],[Item Name:]]="", "", ROW()-8) -> 8 | G16: Boom/Lift | H16: 2020-05-12 | I16: Material | J16: General Conditions | K16: Boom/Lift Rental | L16: 7 | M16: Day | N16: 317 | O16: 2219
D17: ="General Conditions" -> General Conditions | F17: =IF(tblGeneralConditions[[#This Row],[Item Name:]]="", "", ROW()-8) -> 9 | G17: Dumpster Fire | H17: 2020-05-12 | I17: Labor | J17: Demolition and Site Work | K17: Clean up | L17: 2 | M17: Each | N17: 2130 | O17: =+L17*N17 -> 4260
D18: ="General Conditions" -> General Conditions | F18: =IF(tblGeneralConditions[[#This Row],[Item Name:]]="", "", ROW()-8) ->  | O18: =+L18*N18 -> 0
D19: ="General Conditions" -> General Conditions | F19: =IF(tblGeneralConditions[[#This Row],[Item Name:]]="", "", ROW()-8) ->  | O19: =+L19*N19 -> 0
D20: General Conditions | F20: =IF(tblGeneralConditions[[#This Row],[Item Name:]]="", "", ROW()-8) ->  | O20: 0
D21: General Conditions | F21: =IF(tblGeneralConditions[[#This Row],[Item Name:]]="", "", ROW()-8) ->  | O21: 0
D22: General Conditions | F22: =IF(tblGeneralConditions[[#This Row],[Item Name:]]="", "", ROW()-8) ->  | O22: 0
D23: General Conditions | F23: =IF(tblGeneralConditions[[#This Row],[Item Name:]]="", "", ROW()-8) ->  | O23: 0
D24: General Conditions | F24: =IF(tblGeneralConditions[[#This Row],[Item Name:]]="", "", ROW()-8) ->  | O24: 0
D25: General Conditions | F25: =IF(tblGeneralConditions[[#This Row],[Item Name:]]="", "", ROW()-8) ->  | O25: 0
D26: General Conditions | F26: =IF(tblGeneralConditions[[#This Row],[Item Name:]]="", "", ROW()-8) ->  | O26: 0
D27: General Conditions | F27: =IF(tblGeneralConditions[[#This Row],[Item Name:]]="", "", ROW()-8) ->  | O27: 0
D28: General Conditions | F28: =IF(tblGeneralConditions[[#This Row],[Item Name:]]="", "", ROW()-8) ->  | O28: 0
D29: General Conditions | F29: =IF(tblGeneralConditions[[#This Row],[Item Name:]]="", "", ROW()-8) ->  | O29: 0
D30: ="General Conditions" -> General Conditions | F30: =IF(tblGeneralConditions[[#This Row],[Item Name:]]="", "", ROW()-8) ->  | O30: =+L30*N30 -> 0
D31: General Conditions | F31: =IF(tblGeneralConditions[[#This Row],[Item Name:]]="", "", ROW()-8) ->  | O31: 0
D32: General Conditions | F32: =IF(tblGeneralConditions[[#This Row],[Item Name:]]="", "", ROW()-8) ->  | O32: 0
D33: General Conditions | F33: =IF(tblGeneralConditions[[#This Row],[Item Name:]]="", "", ROW()-8) ->  | O33: 0
D34: General Conditions | F34: =IF(tblGeneralConditions[[#This Row],[Item Name:]]="", "", ROW()-8) ->  | O34: 0
D35: General Conditions | F35: =IF(tblGeneralConditions[[#This Row],[Item Name:]]="", "", ROW()-8) ->  | O35: 0
D36: General Conditions | F36: =IF(tblGeneralConditions[[#This Row],[Item Name:]]="", "", ROW()-8) ->  | O36: 0
D37: General Conditions | F37: =IF(tblGeneralConditions[[#This Row],[Item Name:]]="", "", ROW()-8) ->  | O37: 0
D38: General Conditions | F38: =IF(tblGeneralConditions[[#This Row],[Item Name:]]="", "", ROW()-8) ->  | O38: 0
D39: General Conditions | F39: =IF(tblGeneralConditions[[#This Row],[Item Name:]]="", "", ROW()-8) ->  | O39: 0
D40: General Conditions | F40: =IF(tblGeneralConditions[[#This Row],[Item Name:]]="", "", ROW()-8) ->  | O40: 0
D41: General Conditions | F41: =IF(tblGeneralConditions[[#This Row],[Item Name:]]="", "", ROW()-8) ->  | O41: 0
D42: General Conditions | F42: =IF(tblGeneralConditions[[#This Row],[Item Name:]]="", "", ROW()-8) ->  | O42: 0
D43: General Conditions | F43: =IF(tblGeneralConditions[[#This Row],[Item Name:]]="", "", ROW()-8) ->  | O43: 0
D44: ="General Conditions" -> General Conditions | F44: =IF(tblGeneralConditions[[#This Row],[Item Name:]]="", "", ROW()-8) ->  | O44: =+L44*N44 -> 0
D45: ="General Conditions" -> General Conditions | F45: =IF(tblGeneralConditions[[#This Row],[Item Name:]]="", "", ROW()-8) ->  | O45: =+L45*N45 -> 0
D46: ="General Conditions" -> General Conditions | F46: =IF(tblGeneralConditions[[#This Row],[Item Name:]]="", "", ROW()-8) ->  | O46: =+L46*N46 -> 0
D47: ="General Conditions" -> General Conditions | F47: =IF(tblGeneralConditions[[#This Row],[Item Name:]]="", "", ROW()-8) ->  | O47: =+L47*N47 -> 0
D48: General Conditions | F48: =IF(tblGeneralConditions[[#This Row],[Item Name:]]="", "", ROW()-8) ->  | O48: 0
D49: General Conditions | F49: =IF(tblGeneralConditions[[#This Row],[Item Name:]]="", "", ROW()-8) ->  | O49: 0
D50: General Conditions | F50: =IF(tblGeneralConditions[[#This Row],[Item Name:]]="", "", ROW()-8) ->  | O50: 0
D51: General Conditions | F51: =IF(tblGeneralConditions[[#This Row],[Item Name:]]="", "", ROW()-8) ->  | O51: 0
D52: General Conditions | F52: =IF(tblGeneralConditions[[#This Row],[Item Name:]]="", "", ROW()-8) ->  | O52: 0
D53: General Conditions | F53: =IF(tblGeneralConditions[[#This Row],[Item Name:]]="", "", ROW()-8) ->  | O53: 0
D54: General Conditions | F54: =IF(tblGeneralConditions[[#This Row],[Item Name:]]="", "", ROW()-8) ->  | O54: 0
D55: ="General Conditions" -> General Conditions | F55: =IF(tblGeneralConditions[[#This Row],[Item Name:]]="", "", ROW()-8) ->  | O55: =+L55*N55 -> 0
D56: ="General Conditions" -> General Conditions | F56: =IF(tblGeneralConditions[[#This Row],[Item Name:]]="", "", ROW()-8) ->  | O56: =+L56*N56 -> 0
D57: ="General Conditions" -> General Conditions | F57: =IF(tblGeneralConditions[[#This Row],[Item Name:]]="", "", ROW()-8) ->  | O57: =+L57*N57 -> 0
D58: ="General Conditions" -> General Conditions | F58: =IF(tblGeneralConditions[[#This Row],[Item Name:]]="", "", ROW()-8) ->  | O58: =+L58*N58 -> 0
N59: Total: | O59: =SUM(tblGeneralConditions[Extended Price:]) -> 53344
F61: Supporting Documentation

Sheet Utilities
C2: Utilities
A5: Excelimate
A6: By Room/Item
D8: Section: | E8: Sub Category: | F8: Item #: | G8: Item Name: | H8: Date: | I8: Category: | J8: Trade: | K8: Description: | L8: Quantity: | M8: Unit: | N8: Unit Price: | O8: Extended Price: | Q8: Extended Price:
D9: Rough Electrical | F9: 9 | G9: Wire Residence | H9: 2020-05-12 | I9: Labor | J9: Electrical | K9: Rough Electrical Wiring | L9: 2050 | M9: SF | N9: 6.96 | O9: =+L9*N9 -> 14268
A10: General Conditons | D10: Rough Electrical | F10: 10 | G10: Meter Base and Disc. | H10: 2020-05-12 | I10: Material | J10: Electrical | K10: Meter Base and Disconnect | L10: 1 | M10: Ea | N10: 914 | O10: 914
D11: Rough Electrical | F11: 11 | G11: Grounding Rod | H11: 2020-05-12 | I11: Material | J11: Electrical | K11: Grounding Rod for House | L11: 1 | M11: Ea | N11: 149.5 | O11: 149.5
D12: Rough Electrical | F12: 12 | G12: #12 Gauge Wire | H12: 2020-05-12 | I12: Material | J12: Electrical | K12: #12 Residential Gauge Wire | L12: 1000 | M12: LF | N12: 0.9 | O12: 900
D13: Rough Electrical | F13: 13 | G13: Exterior Lights | H13: 2020-05-12 | I13: Material | J13: Electrical | K13: Exterior Lighting | L13: 6 | M13: Ea | N13: 150 | O13: 900
D14: Rough Electrical | F14: 14 | G14: CO/Smoke Detectors | H14: 2020-05-12 | I14: Material | J14: Electrical | K14: Carbon Monoxide and Smoke Detector | L14: 10 | M14: Ea | N14: 65 | O14: 650
D15: Rough Plumbing | F15: 15 | G15: Rough In Plumbing | H15: 2020-05-12 | I15: Labor | J15: Plumbing - Includes septic and well | K15: Rough In Plumbing Residential | L15: 2050 | M15: SF | N15: 5.9 | O15: 12095
D16: Rough Plumbing | F16: 16 | G16: Water Meter Upsize | H16: 2020-05-12 | I16: Material | J16: Plumbing - Includes septic and well | K16: Require Water Meter Upsize | L16: 1 | M16: Ea | N16: 3750 | O16: 3750
D17: Rough Plumbing | F17: 17 | G17: Concealed Fire Sprinkler | H17: 2020-05-12 | I17: Labor | J17: Plumbing - Includes septic and well | K17: Residential Fire Sprinkler System | L17: 2050 | M17: SF | N17: 5.44 | O17: 11152
D18: Rough Plumbing | F18: 18 | G18: Water Softener | H18: 2020-05-12 | I18: Material | J18: Plumbing - Includes septic and well | K18: Water Softener - Electronic Control | L18: 1 | M18: Ea | N18: 1819 | O18: 1819
D19: Rough Plumbing | F19: 19 | G19: Flexible Gas Line | H19: 2020-05-12 | I19: Material | J19: Plumbing - Includes septic and well | K19: 1/2" Flexible Gas Line | L19: 1 | M19: Ea | N19: 50 | O19: 50
D20: Rough Plumbing | E20: Water Heater | F20: 20 | G20: Water Heater | H20: 2020-05-12 | I20: Material | J20: Plumbing - Includes septic and well | K20: Water Heater Tankless - Electrical | L20: 1 | M20: Ea | N20: 2200 | O20: 2200
D21: HVAC | F21: 21 | G21: Ductwork System/HVAC Install | H21: 2020-05-12 | I21: Labor | J21: HVAC | K21: Labor to Install HVAC System | L21: 2050 | M21: SF | N21: 4.95 | O21: 10147.5
D22: HVAC | F22: 22 | G22: Thermostat | H22: 2020-05-12 | I22: Material | J22: HVAC | K22: Thermostat Control | L22: 1 | M22: Ea | N22: 115 | O22: 115
D23: HVAC | F23: 23 | G23: Furnace - Forced Air | H23: 2020-05-12 | I23: Material | J23: HVAC | K23: Furnace - High Efficiency 120,000 BTU | L23: 1 | M23: Ea | N23: 6760 | O23: 6760
D24: HVAC | F24: 24 | G24: Central Air Conditioning | H24: 2020-05-12 | I24: Material | J24: HVAC | K24: Central Air 4 Ton Unit - 14 SEER | L24: 1 | M24: Ea | N24: 4780 | O24: 4780
D25: HVAC | F25: 25 | G25: Attic Fan | H25: 2020-05-12 | I25: Material | J25: HVAC | K25: Attic Fan - 36" | L25: 1 | M25: Ea | N25: 1800 | O25: 1800
O26: 0
O27: 0
O28: 0
O29: 0
O30: 0
O31: 0
O32: 0
O33: 0
O34: 0
O35: 0
O36: 0
O37: 0
O38: 0
O39: 0
O40: 0
O41: =+L41*N41 -> 0
O42: 0
O43: 0
O44: 0
O45: 0
O46: 0
O47: 0
O48: 0
O49: 0
O50: 0
O51: 0
O52: 0
O53: 0
O54: 0
O55: 0
O56: 0
O57: 0
O58: 0
O59: 0
N60: Total: | O60: =SUM(tblUtilities[Extended Price:]) -> 72450
D62: Supporting Documentation

Sheet Foundation
C2: Utilities
A5: Excelimate
A6: By Room/Item
D8: Section: | E8: Sub Category: | F8: Item #: | G8: Item Name: | H8: Date: | I8: Category: | J8: Trade: | K8: Description: | L8: Quantity: | M8: Unit: | N8: Unit Price: | O8: Extended Price: | Q8: Extended Price:
D9: Excavating | F9: 26 | G9: Grade Site | H9: 2020-05-12 | I9: Labor | J9: Demolition and Site Work | K9: Prepare Site for Foundation - Includes Equipment | L9: 1 | M9: Ea | N9: 30000 | O9: =tblFoundation[[#This Row],[Quantity:]]*tblFoundation[[#This Row],[Unit Price:]] -> 30000
A10: General Conditons | D10: Excavating | F10: 27 | G10: Pea Gravel | H10: 2020-05-12 | I10: Material | J10: Demolition and Site Work | K10: Gravel Fill | L10: 10 | M10: CY | N10: 89 | O10: =tblFoundation[[#This Row],[Quantity:]]*tblFoundation[[#This Row],[Unit Price:]] -> 890
D11: Excavating | F11: 28 | G11: Drainage | H11: 2020-05-12 | I11: Labor | J11: Demolition and Site Work | K11: Install Drainage Pipes Under House | L11: 1 | M11: Ea | N11: 1200 | O11: =tblFoundation[[#This Row],[Quantity:]]*tblFoundation[[#This Row],[Unit Price:]] -> 1200
D12: Foundation | F12: 29 | G12: Steel Rebar 5/8" | H12: 2020-05-12 | I12: Material | J12: Concrete/Masonry | K12: Rebar for Foundation | L12: 300 | M12: LF | N12: 2.8 | O12: =tblFoundation[[#This Row],[Quantity:]]*tblFoundation[[#This Row],[Unit Price:]] -> 840
D13: Foundation | F13: 30 | G13: Concrete Pier | H13: 2020-05-12 | I13: Material | J13: Concrete/Masonry | K13: Concrete Piers in Foundation | L13: 15 | M13: Ea | N13: 220 | O13: =tblFoundation[[#This Row],[Quantity:]]*tblFoundation[[#This Row],[Unit Price:]] -> 3300
D14: Foundation | F14: 31 | G14: Footings - Labor | H14: 2020-05-12 | I14: Labor | J14: Concrete/Masonry | K14: Labor to build forms and pour foundation. | L14: 60 | M14: CY | N14: 500 | O14: =tblFoundation[[#This Row],[Quantity:]]*tblFoundation[[#This Row],[Unit Price:]] -> 30000
D15: Foundation | F15: 32 | G15: Footings - Material | H15: 2020-05-12 | I15: Material | J15: Concrete/Masonry | K15: Materials to build forms and pour foundation. | L15: 60 | M15: CY | N15: 500 | O15: =tblFoundation[[#This Row],[Quantity:]]*tblFoundation[[#This Row],[Unit Price:]] -> 30000
D16: Foundation | F16: 33 | G16: Anchor Bolt | H16: 2020-05-12 | I16: Material | J16: Concrete/Masonry | K16: 1/2" x 9" Anchor bolts | L16: 60 | M16: Ea | N16: 7.5 | O16: =tblFoundation[[#This Row],[Quantity:]]*tblFoundation[[#This Row],[Unit Price:]] -> 450
D17: Foundation | F17: 34 | G17: Moisture Protection | H17: 2020-05-12 | I17: Material | J17: Concrete/Masonry | K17: Moisture Barrier Underneath House | L17: 2050 | M17: SF | N17: 0.55 | O17: =tblFoundation[[#This Row],[Quantity:]]*tblFoundation[[#This Row],[Unit Price:]] -> 1127.5
D18: Foundation | F18: 35 | G18: Concrete Hold Down | H18: 2020-05-12 | I18: Material | J18: Concrete/Masonry | K18: Hold Down In Concrete | L18: 32 | M18: Ea | N18: 14.2 | O18: =tblFoundation[[#This Row],[Quantity:]]*tblFoundation[[#This Row],[Unit Price:]] -> 454.4
O19: =tblFoundation[[#This Row],[Quantity:]]*tblFoundation[[#This Row],[Unit Price:]] -> 0
O20: =tblFoundation[[#This Row],[Quantity:]]*tblFoundation[[#This Row],[Unit Price:]] -> 0
O21: =tblFoundation[[#This Row],[Quantity:]]*tblFoundation[[#This Row],[Unit Price:]] -> 0
O22: =tblFoundation[[#This Row],[Quantity:]]*tblFoundation[[#This Row],[Unit Price:]] -> 0
O23: =tblFoundation[[#This Row],[Quantity:]]*tblFoundation[[#This Row],[Unit Price:]] -> 0
O24: =tblFoundation[[#This Row],[Quantity:]]*tblFoundation[[#This Row],[Unit Price:]] -> 0
O25: =tblFoundation[[#This Row],[Quantity:]]*tblFoundation[[#This Row],[Unit Price:]] -> 0
O26: =tblFoundation[[#This Row],[Quantity:]]*tblFoundation[[#This Row],[Unit Price:]] -> 0
O27: =tblFoundation[[#This Row],[Quantity:]]*tblFoundation[[#This Row],[Unit Price:]] -> 0
O28: =tblFoundation[[#This Row],[Quantity:]]*tblFoundation[[#This Row],[Unit Price:]] -> 0
O29: =tblFoundation[[#This Row],[Quantity:]]*tblFoundation[[#This Row],[Unit Price:]] -> 0
O30: =tblFoundation[[#This Row],[Quantity:]]*tblFoundation[[#This Row],[Unit Price:]] -> 0
O31: =tblFoundation[[#This Row],[Quantity:]]*tblFoundation[[#This Row],[Unit Price:]] -> 0
O32: =tblFoundation[[#This Row],[Quantity:]]*tblFoundation[[#This Row],[Unit Price:]] -> 0
O33: =tblFoundation[[#This Row],[Quantity:]]*tblFoundation[[#This Row],[Unit Price:]] -> 0
O34: =tblFoundation[[#This Row],[Quantity:]]*tblFoundation[[#This Row],[Unit Price:]] -> 0
O35: =tblFoundation[[#This Row],[Quantity:]]*tblFoundation[[#This Row],[Unit Price:]] -> 0
O36: =tblFoundation[[#This Row],[Quantity:]]*tblFoundation[[#This Row],[Unit Price:]] -> 0
O37: =tblFoundation[[#This Row],[Quantity:]]*tblFoundation[[#This Row],[Unit Price:]] -> 0
O38: =tblFoundation[[#This Row],[Quantity:]]*tblFoundation[[#This Row],[Unit Price:]] -> 0
O39: =tblFoundation[[#This Row],[Quantity:]]*tblFoundation[[#This Row],[Unit Price:]] -> 0
O40: =tblFoundation[[#This Row],[Quantity:]]*tblFoundation[[#This Row],[Unit Price:]] -> 0
O41: =tblFoundation[[#This Row],[Quantity:]]*tblFoundation[[#This Row],[Unit Price:]] -> 0
O42: =tblFoundation[[#This Row],[Quantity:]]*tblFoundation[[#This Row],[Unit Price:]] -> 0
O43: =tblFoundation[[#This Row],[Quantity:]]*tblFoundation[[#This Row],[Unit Price:]] -> 0
O44: =tblFoundation[[#This Row],[Quantity:]]*tblFoundation[[#This Row],[Unit Price:]] -> 0
O45: =tblFoundation[[#This Row],[Quantity:]]*tblFoundation[[#This Row],[Unit Price:]] -> 0
O46: =tblFoundation[[#This Row],[Quantity:]]*tblFoundation[[#This Row],[Unit Price:]] -> 0
O47: =tblFoundation[[#This Row],[Quantity:]]*tblFoundation[[#This Row],[Unit Price:]] -> 0
O48: =tblFoundation[[#This Row],[Quantity:]]*tblFoundation[[#This Row],[Unit Price:]] -> 0
O49: =tblFoundation[[#This Row],[Quantity:]]*tblFoundation[[#This Row],[Unit Price:]] -> 0
O50: =tblFoundation[[#This Row],[Quantity:]]*tblFoundation[[#This Row],[Unit Price:]] -> 0
O51: =tblFoundation[[#This Row],[Quantity:]]*tblFoundation[[#This Row],[Unit Price:]] -> 0
O52: =tblFoundation[[#This Row],[Quantity:]]*tblFoundation[[#This Row],[Unit Price:]] -> 0
O53: =tblFoundation[[#This Row],[Quantity:]]*tblFoundation[[#This Row],[Unit Price:]] -> 0
O54: =tblFoundation[[#This Row],[Quantity:]]*tblFoundation[[#This Row],[Unit Price:]] -> 0
O55: =tblFoundation[[#This Row],[Quantity:]]*tblFoundation[[#This Row],[Unit Price:]] -> 0
O56: =tblFoundation[[#This Row],[Quantity:]]*tblFoundation[[#This Row],[Unit Price:]] -> 0
O57: =tblFoundation[[#This Row],[Quantity:]]*tblFoundation[[#This Row],[Unit Price:]] -> 0
O58: =tblFoundation[[#This Row],[Quantity:]]*tblFoundation[[#This Row],[Unit Price:]] -> 0
O59: =tblFoundation[[#This Row],[Quantity:]]*tblFoundation[[#This Row],[Unit Price:]] -> 0
N60: Total: | O60: =SUM(tblFoundation[Extended Price:]) -> 98261.9
D62: Supporting Documentation

Sheet AppLists (hidden)
C1: Table | D1: Column | E1: Formula | G1: Row Labels | I1: Row Labels | K1: Row Labels | M1: Row Labels
G2: Decks | I2: Entry | K2: Landscape 1 | M2: Tower
C3: tblExteriorSections | D3: Section | E3: OFFSET(AppLists!$G$2,0,0,counta(AppLists!$G:$G)-1) | G3: Floor Framing | I3: Kitchen | K3: Landscape 2 | M3: Additional Dwelling Unit
C4: tblInteriorSections | D4: Section | E4: OFFSET(AppLists!$I$2,0,0,counta(AppLists!$I:$I)-1) | G4: Garage | I4: Master Bath | K4: Landscape 3 | M4: Detached Garage
C5: tblLandscapeSections | D5: Section | E5: OFFSET(AppLists!$K$2,0,0,counta(AppLists!$K:$K)-1) | G5: Insulation | I5: Bedroom1 | K5: Landscape 4 | M5: Shed
C6: tblOtherStructuresSections | D6: Section | E6: OFFSET(AppLists!$M$2,0,0,counta(AppLists!$M:$M)-1) | G6: Landscape | I6: (blank) | K6: Landscape 5 | M6: Moat
G7: Main Level Framing | I7: Bedroom2
G8: Patios/Walkways
G9: Roof
G10: Roof Framing
G11: Siding
G12: (blank)

Sheet Landscape
C2: Landscape
A5: Excelimate
A6: By Room/Item | N6: =N9*L9 -> 0
D8: Section: | E8: Sub Category: | F8: Item #: | G8: Item Name: | H8: Date: | I8: Category: | J8: Trade: | K8: Description: | L8: Quantity: | M8: Unit: | N8: Unit Price: | O8: Extended Price: | Q8: Extended Price:
O9: =tblLandscape[[#This Row],[Unit Price:]]*tblLandscape[[#This Row],[Quantity:]] -> 0
A10: General Conditons | O10: =tblLandscape[[#This Row],[Unit Price:]]*tblLandscape[[#This Row],[Quantity:]] -> 0
O11: =tblLandscape[[#This Row],[Unit Price:]]*tblLandscape[[#This Row],[Quantity:]] -> 0
O12: =tblLandscape[[#This Row],[Unit Price:]]*tblLandscape[[#This Row],[Quantity:]] -> 0
O13: =tblLandscape[[#This Row],[Unit Price:]]*tblLandscape[[#This Row],[Quantity:]] -> 0
O14: =tblLandscape[[#This Row],[Unit Price:]]*tblLandscape[[#This Row],[Quantity:]] -> 0
O15: =tblLandscape[[#This Row],[Unit Price:]]*tblLandscape[[#This Row],[Quantity:]] -> 0
O16: =tblLandscape[[#This Row],[Unit Price:]]*tblLandscape[[#This Row],[Quantity:]] -> 0
O17: =tblLandscape[[#This Row],[Unit Price:]]*tblLandscape[[#This Row],[Quantity:]] -> 0
O18: =tblLandscape[[#This Row],[Unit Price:]]*tblLandscape[[#This Row],[Quantity:]] -> 0
O19: =tblLandscape[[#This Row],[Unit Price:]]*tblLandscape[[#This Row],[Quantity:]] -> 0
O20: =tblLandscape[[#This Row],[Unit Price:]]*tblLandscape[[#This Row],[Quantity:]] -> 0
O21: =tblLandscape[[#This Row],[Unit Price:]]*tblLandscape[[#This Row],[Quantity:]] -> 0
O22: =tblLandscape[[#This Row],[Unit Price:]]*tblLandscape[[#This Row],[Quantity:]] -> 0
O23: =tblLandscape[[#This Row],[Unit Price:]]*tblLandscape[[#This Row],[Quantity:]] -> 0
O24: =tblLandscape[[#This Row],[Unit Price:]]*tblLandscape[[#This Row],[Quantity:]] -> 0
O25: =tblLandscape[[#This Row],[Unit Price:]]*tblLandscape[[#This Row],[Quantity:]] -> 0
O26: =tblLandscape[[#This Row],[Unit Price:]]*tblLandscape[[#This Row],[Quantity:]] -> 0
O27: =tblLandscape[[#This Row],[Unit Price:]]*tblLandscape[[#This Row],[Quantity:]] -> 0
O28: =tblLandscape[[#This Row],[Unit Price:]]*tblLandscape[[#This Row],[Quantity:]] -> 0
O29: =tblLandscape[[#This Row],[Unit Price:]]*tblLandscape[[#This Row],[Quantity:]] -> 0
O30: =tblLandscape[[#This Row],[Unit Price:]]*tblLandscape[[#This Row],[Quantity:]] -> 0
O31: =tblLandscape[[#This Row],[Unit Price:]]*tblLandscape[[#This Row],[Quantity:]] -> 0
O32: =tblLandscape[[#This Row],[Unit Price:]]*tblLandscape[[#This Row],[Quantity:]] -> 0
O33: =tblLandscape[[#This Row],[Unit Price:]]*tblLandscape[[#This Row],[Quantity:]] -> 0
O34: =tblLandscape[[#This Row],[Unit Price:]]*tblLandscape[[#This Row],[Quantity:]] -> 0
O35: =tblLandscape[[#This Row],[Unit Price:]]*tblLandscape[[#This Row],[Quantity:]] -> 0
O36: =tblLandscape[[#This Row],[Unit Price:]]*tblLandscape[[#This Row],[Quantity:]] -> 0
O37: =tblLandscape[[#This Row],[Unit Price:]]*tblLandscape[[#This Row],[Quantity:]] -> 0
O38: =tblLandscape[[#This Row],[Unit Price:]]*tblLandscape[[#This Row],[Quantity:]] -> 0
O39: =tblLandscape[[#This Row],[Unit Price:]]*tblLandscape[[#This Row],[Quantity:]] -> 0
O40: =tblLandscape[[#This Row],[Unit Price:]]*tblLandscape[[#This Row],[Quantity:]] -> 0
O41: =tblLandscape[[#This Row],[Unit Price:]]*tblLandscape[[#This Row],[Quantity:]] -> 0
O42: =tblLandscape[[#This Row],[Unit Price:]]*tblLandscape[[#This Row],[Quantity:]] -> 0
O43: =tblLandscape[[#This Row],[Unit Price:]]*tblLandscape[[#This Row],[Quantity:]] -> 0
O44: =tblLandscape[[#This Row],[Unit Price:]]*tblLandscape[[#This Row],[Quantity:]] -> 0
O45: =tblLandscape[[#This Row],[Unit Price:]]*tblLandscape[[#This Row],[Quantity:]] -> 0
O46: =tblLandscape[[#This Row],[Unit Price:]]*tblLandscape[[#This Row],[Quantity:]] -> 0
O47: =tblLandscape[[#This Row],[Unit Price:]]*tblLandscape[[#This Row],[Quantity:]] -> 0
O48: =tblLandscape[[#This Row],[Unit Price:]]*tblLandscape[[#This Row],[Quantity:]] -> 0
O49: =tblLandscape[[#This Row],[Unit Price:]]*tblLandscape[[#This Row],[Quantity:]] -> 0
O50: =tblLandscape[[#This Row],[Unit Price:]]*tblLandscape[[#This Row],[Quantity:]] -> 0
O51: =tblLandscape[[#This Row],[Unit Price:]]*tblLandscape[[#This Row],[Quantity:]] -> 0
O52: =tblLandscape[[#This Row],[Unit Price:]]*tblLandscape[[#This Row],[Quantity:]] -> 0
O53: =tblLandscape[[#This Row],[Unit Price:]]*tblLandscape[[#This Row],[Quantity:]] -> 0
O54: =tblLandscape[[#This Row],[Unit Price:]]*tblLandscape[[#This Row],[Quantity:]] -> 0
O55: =tblLandscape[[#This Row],[Unit Price:]]*tblLandscape[[#This Row],[Quantity:]] -> 0
O56: =tblLandscape[[#This Row],[Unit Price:]]*tblLandscape[[#This Row],[Quantity:]] -> 0
O57: =tblLandscape[[#This Row],[Unit Price:]]*tblLandscape[[#This Row],[Quantity:]] -> 0
O58: =tblLandscape[[#This Row],[Unit Price:]]*tblLandscape[[#This Row],[Quantity:]] -> 0
O59: =tblLandscape[[#This Row],[Unit Price:]]*tblLandscape[[#This Row],[Quantity:]] -> 0
N60: Total: | O60: =SUM(tblLandscape[Extended Price:]) -> 0
D62: Supporting Documentation

Sheet Exterior
C2: Exterior
A5: Excelimate
A6: By Room/Item
D8: Section: | E8: Sub Category: | F8: Item #: | G8: Item Name: | H8: Date: | I8: Category: | J8: Trade: | K8: Description: | L8: Quantity: | M8: Unit: | N8: Unit Price: | O8: Extended Price: | Q8: Extended Price:
O9: =tblExterior[[#This Row],[Unit Price:]]*tblExterior[[#This Row],[Quantity:]] -> 0
A10: General Conditons | O10: =tblExterior[[#This Row],[Unit Price:]]*tblExterior[[#This Row],[Quantity:]] -> 0
O11: =tblExterior[[#This Row],[Unit Price:]]*tblExterior[[#This Row],[Quantity:]] -> 0
O12: =tblExterior[[#This Row],[Unit Price:]]*tblExterior[[#This Row],[Quantity:]] -> 0
O13: =tblExterior[[#This Row],[Unit Price:]]*tblExterior[[#This Row],[Quantity:]] -> 0
O14: =tblExterior[[#This Row],[Unit Price:]]*tblExterior[[#This Row],[Quantity:]] -> 0
O15: =tblExterior[[#This Row],[Unit Price:]]*tblExterior[[#This Row],[Quantity:]] -> 0
O16: =tblExterior[[#This Row],[Unit Price:]]*tblExterior[[#This Row],[Quantity:]] -> 0
O17: =tblExterior[[#This Row],[Unit Price:]]*tblExterior[[#This Row],[Quantity:]] -> 0
O18: =tblExterior[[#This Row],[Unit Price:]]*tblExterior[[#This Row],[Quantity:]] -> 0
O19: =tblExterior[[#This Row],[Unit Price:]]*tblExterior[[#This Row],[Quantity:]] -> 0
O20: =tblExterior[[#This Row],[Unit Price:]]*tblExterior[[#This Row],[Quantity:]] -> 0
O21: =tblExterior[[#This Row],[Unit Price:]]*tblExterior[[#This Row],[Quantity:]] -> 0
O22: =tblExterior[[#This Row],[Unit Price:]]*tblExterior[[#This Row],[Quantity:]] -> 0
O23: =tblExterior[[#This Row],[Unit Price:]]*tblExterior[[#This Row],[Quantity:]] -> 0
O24: =tblExterior[[#This Row],[Unit Price:]]*tblExterior[[#This Row],[Quantity:]] -> 0
O25: =tblExterior[[#This Row],[Unit Price:]]*tblExterior[[#This Row],[Quantity:]] -> 0
O26: =tblExterior[[#This Row],[Unit Price:]]*tblExterior[[#This Row],[Quantity:]] -> 0
O27: =tblExterior[[#This Row],[Unit Price:]]*tblExterior[[#This Row],[Quantity:]] -> 0
O28: =tblExterior[[#This Row],[Unit Price:]]*tblExterior[[#This Row],[Quantity:]] -> 0
O29: =tblExterior[[#This Row],[Unit Price:]]*tblExterior[[#This Row],[Quantity:]] -> 0
O30: =tblExterior[[#This Row],[Unit Price:]]*tblExterior[[#This Row],[Quantity:]] -> 0
O31: =tblExterior[[#This Row],[Unit Price:]]*tblExterior[[#This Row],[Quantity:]] -> 0
O32: =tblExterior[[#This Row],[Unit Price:]]*tblExterior[[#This Row],[Quantity:]] -> 0
O33: =tblExterior[[#This Row],[Unit Price:]]*tblExterior[[#This Row],[Quantity:]] -> 0
O34: =tblExterior[[#This Row],[Unit Price:]]*tblExterior[[#This Row],[Quantity:]] -> 0
O35: =tblExterior[[#This Row],[Unit Price:]]*tblExterior[[#This Row],[Quantity:]] -> 0
O36: =tblExterior[[#This Row],[Unit Price:]]*tblExterior[[#This Row],[Quantity:]] -> 0
O37: =tblExterior[[#This Row],[Unit Price:]]*tblExterior[[#This Row],[Quantity:]] -> 0
O38: =tblExterior[[#This Row],[Unit Price:]]*tblExterior[[#This Row],[Quantity:]] -> 0
O39: =tblExterior[[#This Row],[Unit Price:]]*tblExterior[[#This Row],[Quantity:]] -> 0
O40: =tblExterior[[#This Row],[Unit Price:]]*tblExterior[[#This Row],[Quantity:]] -> 0
O41: =tblExterior[[#This Row],[Unit Price:]]*tblExterior[[#This Row],[Quantity:]] -> 0
O42: =tblExterior[[#This Row],[Unit Price:]]*tblExterior[[#This Row],[Quantity:]] -> 0
O43: =tblExterior[[#This Row],[Unit Price:]]*tblExterior[[#This Row],[Quantity:]] -> 0
O44: =tblExterior[[#This Row],[Unit Price:]]*tblExterior[[#This Row],[Quantity:]] -> 0
O45: =tblExterior[[#This Row],[Unit Price:]]*tblExterior[[#This Row],[Quantity:]] -> 0
O46: =tblExterior[[#This Row],[Unit Price:]]*tblExterior[[#This Row],[Quantity:]] -> 0
O47: =tblExterior[[#This Row],[Unit Price:]]*tblExterior[[#This Row],[Quantity:]] -> 0
O48: =tblExterior[[#This Row],[Unit Price:]]*tblExterior[[#This Row],[Quantity:]] -> 0
O49: =tblExterior[[#This Row],[Unit Price:]]*tblExterior[[#This Row],[Quantity:]] -> 0
O50: =tblExterior[[#This Row],[Unit Price:]]*tblExterior[[#This Row],[Quantity:]] -> 0
O51: =tblExterior[[#This Row],[Unit Price:]]*tblExterior[[#This Row],[Quantity:]] -> 0
O52: =tblExterior[[#This Row],[Unit Price:]]*tblExterior[[#This Row],[Quantity:]] -> 0
O53: =tblExterior[[#This Row],[Unit Price:]]*tblExterior[[#This Row],[Quantity:]] -> 0
O54: =tblExterior[[#This Row],[Unit Price:]]*tblExterior[[#This Row],[Quantity:]] -> 0
O55: =tblExterior[[#This Row],[Unit Price:]]*tblExterior[[#This Row],[Quantity:]] -> 0
O56: =tblExterior[[#This Row],[Unit Price:]]*tblExterior[[#This Row],[Quantity:]] -> 0
O57: =tblExterior[[#This Row],[Unit Price:]]*tblExterior[[#This Row],[Quantity:]] -> 0
O58: =tblExterior[[#This Row],[Unit Price:]]*tblExterior[[#This Row],[Quantity:]] -> 0
O59: =tblExterior[[#This Row],[Unit Price:]]*tblExterior[[#This Row],[Quantity:]] -> 0
N60: Total: | O60: =SUM(tblExterior[Extended Price:]) -> 0
D62: Supporting Documentation

Sheet Interior
C2: Interior
A5: Excelimate
A6: By Room/Item
D8: Section: | E8: Sub Category: | F8: Item #: | G8: Item Name: | H8: Nickname | I8: Date: | J8: Category: | K8: Trade: | L8: Description: | M8: Quantity: | N8: Unit: | O8: Unit Price: | P8: Extended Price: | R8: Extended Price:
P9: =tblInterior[[#This Row],[Unit Price:]]*tblInterior[[#This Row],[Quantity:]] -> 0
P10: =tblInterior[[#This Row],[Unit Price:]]*tblInterior[[#This Row],[Quantity:]] -> 0
P11: =tblInterior[[#This Row],[Unit Price:]]*tblInterior[[#This Row],[Quantity:]] -> 0
P12: =tblInterior[[#This Row],[Unit Price:]]*tblInterior[[#This Row],[Quantity:]] -> 0
P13: =tblInterior[[#This Row],[Unit Price:]]*tblInterior[[#This Row],[Quantity:]] -> 0
P14: =tblInterior[[#This Row],[Unit Price:]]*tblInterior[[#This Row],[Quantity:]] -> 0
P15: =tblInterior[[#This Row],[Unit Price:]]*tblInterior[[#This Row],[Quantity:]] -> 0
P16: =tblInterior[[#This Row],[Unit Price:]]*tblInterior[[#This Row],[Quantity:]] -> 0
P17: =tblInterior[[#This Row],[Unit Price:]]*tblInterior[[#This Row],[Quantity:]] -> 0
A18: General Conditons | P18: =tblInterior[[#This Row],[Unit Price:]]*tblInterior[[#This Row],[Quantity:]] -> 0
P19: =tblInterior[[#This Row],[Unit Price:]]*tblInterior[[#This Row],[Quantity:]] -> 0
P20: =tblInterior[[#This Row],[Unit Price:]]*tblInterior[[#This Row],[Quantity:]] -> 0
P21: =tblInterior[[#This Row],[Unit Price:]]*tblInterior[[#This Row],[Quantity:]] -> 0
P22: =tblInterior[[#This Row],[Unit Price:]]*tblInterior[[#This Row],[Quantity:]] -> 0
P23: =tblInterior[[#This Row],[Unit Price:]]*tblInterior[[#This Row],[Quantity:]] -> 0
P24: =tblInterior[[#This Row],[Unit Price:]]*tblInterior[[#This Row],[Quantity:]] -> 0
P25: =tblInterior[[#This Row],[Unit Price:]]*tblInterior[[#This Row],[Quantity:]] -> 0
P26: =tblInterior[[#This Row],[Unit Price:]]*tblInterior[[#This Row],[Quantity:]] -> 0
P27: =tblInterior[[#This Row],[Unit Price:]]*tblInterior[[#This Row],[Quantity:]] -> 0
P28: =tblInterior[[#This Row],[Unit Price:]]*tblInterior[[#This Row],[Quantity:]] -> 0
P29: =tblInterior[[#This Row],[Unit Price:]]*tblInterior[[#This Row],[Quantity:]] -> 0
P30: =tblInterior[[#This Row],[Unit Price:]]*tblInterior[[#This Row],[Quantity:]] -> 0
P31: =tblInterior[[#This Row],[Unit Price:]]*tblInterior[[#This Row],[Quantity:]] -> 0
P32: =tblInterior[[#This Row],[Unit Price:]]*tblInterior[[#This Row],[Quantity:]] -> 0
P33: =tblInterior[[#This Row],[Unit Price:]]*tblInterior[[#This Row],[Quantity:]] -> 0
P34: =tblInterior[[#This Row],[Unit Price:]]*tblInterior[[#This Row],[Quantity:]] -> 0
P35: =tblInterior[[#This Row],[Unit Price:]]*tblInterior[[#This Row],[Quantity:]] -> 0
P36: =tblInterior[[#This Row],[Unit Price:]]*tblInterior[[#This Row],[Quantity:]] -> 0
P37: =tblInterior[[#This Row],[Unit Price:]]*tblInterior[[#This Row],[Quantity:]] -> 0
P38: =tblInterior[[#This Row],[Unit Price:]]*tblInterior[[#This Row],[Quantity:]] -> 0
P39: =tblInterior[[#This Row],[Unit Price:]]*tblInterior[[#This Row],[Quantity:]] -> 0
P40: =tblInterior[[#This Row],[Unit Price:]]*tblInterior[[#This Row],[Quantity:]] -> 0
P41: =tblInterior[[#This Row],[Unit Price:]]*tblInterior[[#This Row],[Quantity:]] -> 0
P42: =tblInterior[[#This Row],[Unit Price:]]*tblInterior[[#This Row],[Quantity:]] -> 0
P43: =tblInterior[[#This Row],[Unit Price:]]*tblInterior[[#This Row],[Quantity:]] -> 0
P44: =tblInterior[[#This Row],[Unit Price:]]*tblInterior[[#This Row],[Quantity:]] -> 0
P45: =tblInterior[[#This Row],[Unit Price:]]*tblInterior[[#This Row],[Quantity:]] -> 0
P46: =tblInterior[[#This Row],[Unit Price:]]*tblInterior[[#This Row],[Quantity:]] -> 0
P47: =tblInterior[[#This Row],[Unit Price:]]*tblInterior[[#This Row],[Quantity:]] -> 0
P48: =tblInterior[[#This Row],[Unit Price:]]*tblInterior[[#This Row],[Quantity:]] -> 0
P49: =tblInterior[[#This Row],[Unit Price:]]*tblInterior[[#This Row],[Quantity:]] -> 0
P50: =tblInterior[[#This Row],[Unit Price:]]*tblInterior[[#This Row],[Quantity:]] -> 0
P51: =tblInterior[[#This Row],[Unit Price:]]*tblInterior[[#This Row],[Quantity:]] -> 0
P52: =tblInterior[[#This Row],[Unit Price:]]*tblInterior[[#This Row],[Quantity:]] -> 0
P53: =tblInterior[[#This Row],[Unit Price:]]*tblInterior[[#This Row],[Quantity:]] -> 0
P54: =tblInterior[[#This Row],[Unit Price:]]*tblInterior[[#This Row],[Quantity:]] -> 0
P55: =tblInterior[[#This Row],[Unit Price:]]*tblInterior[[#This Row],[Quantity:]] -> 0
P56: =tblInterior[[#This Row],[Unit Price:]]*tblInterior[[#This Row],[Quantity:]] -> 0
P57: =tblInterior[[#This Row],[Unit Price:]]*tblInterior[[#This Row],[Quantity:]] -> 0
P58: =tblInterior[[#This Row],[Unit Price:]]*tblInterior[[#This Row],[Quantity:]] -> 0
P59: =tblInterior[[#This Row],[Unit Price:]]*tblInterior[[#This Row],[Quantity:]] -> 0
O60: Total: | P60: =SUM(tblInterior[Extended Price:]) -> 0
D62: Supporting Documentation

Sheet Other Structures
C2: Exterior Structures
A5: Excelimate
A6: By Room/Item
D8: Section: | E8: Sub Category | F8: Item #: | G8: Item Name: | H8: Date: | I8: Category: | J8: Trade: | K8: Description: | L8: Quantity: | M8: Unit: | N8: Unit Price: | O8: Extended Price: | Q8: Extended Price:
O9: =tblExteriorStructures[[#This Row],[Unit Price:]]*tblExteriorStructures[[#This Row],[Quantity:]] -> 0
O10: =tblExteriorStructures[[#This Row],[Unit Price:]]*tblExteriorStructures[[#This Row],[Quantity:]] -> 0
O11: =tblExteriorStructures[[#This Row],[Unit Price:]]*tblExteriorStructures[[#This Row],[Quantity:]] -> 0
O12: =tblExteriorStructures[[#This Row],[Unit Price:]]*tblExteriorStructures[[#This Row],[Quantity:]] -> 0
O13: =tblExteriorStructures[[#This Row],[Unit Price:]]*tblExteriorStructures[[#This Row],[Quantity:]] -> 0
O14: =tblExteriorStructures[[#This Row],[Unit Price:]]*tblExteriorStructures[[#This Row],[Quantity:]] -> 0
A15: General Conditons | O15: =tblExteriorStructures[[#This Row],[Unit Price:]]*tblExteriorStructures[[#This Row],[Quantity:]] -> 0
O16: =tblExteriorStructures[[#This Row],[Unit Price:]]*tblExteriorStructures[[#This Row],[Quantity:]] -> 0
O17: =tblExteriorStructures[[#This Row],[Unit Price:]]*tblExteriorStructures[[#This Row],[Quantity:]] -> 0
O18: =tblExteriorStructures[[#This Row],[Unit Price:]]*tblExteriorStructures[[#This Row],[Quantity:]] -> 0
O19: =tblExteriorStructures[[#This Row],[Unit Price:]]*tblExteriorStructures[[#This Row],[Quantity:]] -> 0
O20: =tblExteriorStructures[[#This Row],[Unit Price:]]*tblExteriorStructures[[#This Row],[Quantity:]] -> 0
O21: =tblExteriorStructures[[#This Row],[Unit Price:]]*tblExteriorStructures[[#This Row],[Quantity:]] -> 0
O22: =tblExteriorStructures[[#This Row],[Unit Price:]]*tblExteriorStructures[[#This Row],[Quantity:]] -> 0
O23: =tblExteriorStructures[[#This Row],[Unit Price:]]*tblExteriorStructures[[#This Row],[Quantity:]] -> 0
O24: =tblExteriorStructures[[#This Row],[Unit Price:]]*tblExteriorStructures[[#This Row],[Quantity:]] -> 0
O25: =tblExteriorStructures[[#This Row],[Unit Price:]]*tblExteriorStructures[[#This Row],[Quantity:]] -> 0
O26: =tblExteriorStructures[[#This Row],[Unit Price:]]*tblExteriorStructures[[#This Row],[Quantity:]] -> 0
O27: =tblExteriorStructures[[#This Row],[Unit Price:]]*tblExteriorStructures[[#This Row],[Quantity:]] -> 0
O28: =tblExteriorStructures[[#This Row],[Unit Price:]]*tblExteriorStructures[[#This Row],[Quantity:]] -> 0
O29: =tblExteriorStructures[[#This Row],[Unit Price:]]*tblExteriorStructures[[#This Row],[Quantity:]] -> 0
O30: =tblExteriorStructures[[#This Row],[Unit Price:]]*tblExteriorStructures[[#This Row],[Quantity:]] -> 0
O31: =tblExteriorStructures[[#This Row],[Unit Price:]]*tblExteriorStructures[[#This Row],[Quantity:]] -> 0
O32: =tblExteriorStructures[[#This Row],[Unit Price:]]*tblExteriorStructures[[#This Row],[Quantity:]] -> 0
O33: =tblExteriorStructures[[#This Row],[Unit Price:]]*tblExteriorStructures[[#This Row],[Quantity:]] -> 0
O34: =tblExteriorStructures[[#This Row],[Unit Price:]]*tblExteriorStructures[[#This Row],[Quantity:]] -> 0
O35: =tblExteriorStructures[[#This Row],[Unit Price:]]*tblExteriorStructures[[#This Row],[Quantity:]] -> 0
O36: =tblExteriorStructures[[#This Row],[Unit Price:]]*tblExteriorStructures[[#This Row],[Quantity:]] -> 0
O37: =tblExteriorStructures[[#This Row],[Unit Price:]]*tblExteriorStructures[[#This Row],[Quantity:]] -> 0
O38: =tblExteriorStructures[[#This Row],[Unit Price:]]*tblExteriorStructures[[#This Row],[Quantity:]] -> 0
O39: =tblExteriorStructures[[#This Row],[Unit Price:]]*tblExteriorStructures[[#This Row],[Quantity:]] -> 0
O40: =tblExteriorStructures[[#This Row],[Unit Price:]]*tblExteriorStructures[[#This Row],[Quantity:]] -> 0
O41: =tblExteriorStructures[[#This Row],[Unit Price:]]*tblExteriorStructures[[#This Row],[Quantity:]] -> 0
O42: =tblExteriorStructures[[#This Row],[Unit Price:]]*tblExteriorStructures[[#This Row],[Quantity:]] -> 0
O43: =tblExteriorStructures[[#This Row],[Unit Price:]]*tblExteriorStructures[[#This Row],[Quantity:]] -> 0
O44: =tblExteriorStructures[[#This Row],[Unit Price:]]*tblExteriorStructures[[#This Row],[Quantity:]] -> 0
O45: =tblExteriorStructures[[#This Row],[Unit Price:]]*tblExteriorStructures[[#This Row],[Quantity:]] -> 0
O46: =tblExteriorStructures[[#This Row],[Unit Price:]]*tblExteriorStructures[[#This Row],[Quantity:]] -> 0
O47: =tblExteriorStructures[[#This Row],[Unit Price:]]*tblExteriorStructures[[#This Row],[Quantity:]] -> 0
O48: =tblExteriorStructures[[#This Row],[Unit Price:]]*tblExteriorStructures[[#This Row],[Quantity:]] -> 0
O49: =tblExteriorStructures[[#This Row],[Unit Price:]]*tblExteriorStructures[[#This Row],[Quantity:]] -> 0
O50: =tblExteriorStructures[[#This Row],[Unit Price:]]*tblExteriorStructures[[#This Row],[Quantity:]] -> 0
O51: =tblExteriorStructures[[#This Row],[Unit Price:]]*tblExteriorStructures[[#This Row],[Quantity:]] -> 0
O52: =tblExteriorStructures[[#This Row],[Unit Price:]]*tblExteriorStructures[[#This Row],[Quantity:]] -> 0
O53: =tblExteriorStructures[[#This Row],[Unit Price:]]*tblExteriorStructures[[#This Row],[Quantity:]] -> 0
O54: =tblExteriorStructures[[#This Row],[Unit Price:]]*tblExteriorStructures[[#This Row],[Quantity:]] -> 0
O55: =tblExteriorStructures[[#This Row],[Unit Price:]]*tblExteriorStructures[[#This Row],[Quantity:]] -> 0
O56: =tblExteriorStructures[[#This Row],[Unit Price:]]*tblExteriorStructures[[#This Row],[Quantity:]] -> 0
O57: =tblExteriorStructures[[#This Row],[Unit Price:]]*tblExteriorStructures[[#This Row],[Quantity:]] -> 0
O58: =tblExteriorStructures[[#This Row],[Unit Price:]]*tblExteriorStructures[[#This Row],[Quantity:]] -> 0
O59: =tblExteriorStructures[[#This Row],[Unit Price:]]*tblExteriorStructures[[#This Row],[Quantity:]] -> 0
N60: Total: | O60: =SUM(tblExteriorStructures[Extended Price:]) -> 0
D62: Supporting Documentation
D63: Other Structures - Refers to any item on the property not attached to the main dwelling. Fencing, decking, back sheds, detached garages, pools, pool houses, ADUs etc. Anything not directly attached to the home. Step 1: Step 2:

Sheet Materials
C2: Materials Report
C5: This Page Is Not Editable
D8: Section: | E8: Sub Category: | F8: Item #: | G8: Item Name: | H8: Date: | I8: Category: | J8: Trade: | K8: Description: | L8: Quantity: | M8: Unit: | N8: Unit Price: | O8: Extended Price:
D9: Excavating | F9: 27 | G9: Pea Gravel | H9: 2020-05-12 | I9: Material | J9: Demolition and Site Work | K9: Gravel Fill | L9: 10 | M9: CY | N9: 89 | O9: 890
D10: Foundation | F10: 29 | G10: Steel Rebar 5/8" | H10: 2020-05-12 | I10: Material | J10: Concrete/Masonry | K10: Rebar for Foundation | L10: 300 | M10: LF | N10: 2.8 | O10: 840
D11: Foundation | F11: 30 | G11: Concrete Pier | H11: 2020-05-12 | I11: Material | J11: Concrete/Masonry | K11: Concrete Piers in Foundation | L11: 15 | M11: Ea | N11: 220 | O11: 3300
D12: Foundation | F12: 32 | G12: Footings - Material | H12: 2020-05-12 | I12: Material | J12: Concrete/Masonry | K12: Materials to build forms and pour foundation. | L12: 60 | M12: CY | N12: 500 | O12: 30000
D13: Foundation | F13: 33 | G13: Anchor Bolt | H13: 2020-05-12 | I13: Material | J13: Concrete/Masonry | K13: 1/2" x 9" Anchor bolts | L13: 60 | M13: Ea | N13: 7.5 | O13: 450
D14: Foundation | F14: 34 | G14: Moisture Protection | H14: 2020-05-12 | I14: Material | J14: Concrete/Masonry | K14: Moisture Barrier Underneath House | L14: 2050 | M14: SF | N14: 0.55 | O14: 1127.5
D15: Foundation | F15: 35 | G15: Concrete Hold Down | H15: 2020-05-12 | I15: Material | J15: Concrete/Masonry | K15: Hold Down In Concrete | L15: 32 | M15: Ea | N15: 14.2 | O15: 454.4
D16: Garage | E16: Ceiling | F16: 37 | G16: 5/8" Dry Wall | H16: 2020-05-12 | I16: Material | J16: Drywall and Paint | K16: 5/8" Dry Wall Sheet 4' x 8' | L16: 16 | M16: Ea | N16: 9.5 | O16: 152
D17: Garage | E17: Doors/Windows/Trim | F17: 38 | G17: Seal/Prime and Paint | H17: 2020-05-12 | I17: Material | J17: Drywall and Paint | K17: Primer and Paint | L17: 464 | M17: SF | N17: 0.45 | O17: 208.8
D18: Garage | E18: Ceiling | F18: 40 | G18: 5/8" Dry Wall | H18: 2020-05-12 | I18: Material | J18: Drywall and Paint | K18: 5/8" Dry Wall Sheet 4' x 8' | L18: 38 | M18: Ea | N18: 9.5 | O18: 361
D19: Garage | E19: Walls | F19: 41 | G19: Seal/Prime and Paint | H19: 2020-05-12 | I19: Material | J19: Drywall and Paint | K19: Primer and Paint | L19: 1172 | M19: SF | N19: 0.45 | O19: 527.4
D20: Garage | E20: Finish Carpentry | F20: 42 | G20: Door Casing | H20: 2020-05-12 | I20: Material | J20: Finish Carpentry | K20: Door Casing - 3-1/4" | L20: 32 | M20: LF | N20: 1.9 | O20: 60.8
D21: Garage | E21: Finish Carpentry | F21: 42 | G21: Paint Door Casing | H21: 2020-05-12 | I21: Material | J21: Drywall and Paint | K21: Paint for Door Casing | L21: 32 | M21: LF | N21: 0.25 | O21: 8
D22: Rough Electrical | F22: 10 | G22: Meter Base and Disc. | H22: 2020-05-12 | I22: Material | J22: Electrical | K22: Meter Base and Disconnect | L22: 1 | M22: Ea | N22: 914 | O22: 914
D23: Rough Electrical | F23: 11 | G23: Grounding Rod | H23: 2020-05-12 | I23: Material | J23: Electrical | K23: Grounding Rod for House | L23: 1 | M23: Ea | N23: 149.5 | O23: 149.5
D24: Rough Electrical | F24: 12 | G24: #12 Gauge Wire | H24: 2020-05-12 | I24: Material | J24: Electrical | K24: #12 Residential Gauge Wire | L24: 1000 | M24: LF | N24: 0.9 | O24: 900
D25: Rough Electrical | F25: 13 | G25: Exterior Lights | H25: 2020-05-12 | I25: Material | J25: Electrical | K25: Exterior Lighting | L25: 6 | M25: Ea | N25: 150 | O25: 900
D26: Rough Electrical | F26: 14 | G26: CO/Smoke Detectors | H26: 2020-05-12 | I26: Material | J26: Electrical | K26: Carbon Monoxide and Smoke Detector | L26: 10 | M26: Ea | N26: 65 | O26: 650
D27: Rough Plumbing | F27: 16 | G27: Water Meter Upsize | H27: 2020-05-12 | I27: Material | J27: Plumbing - Includes septic and well | K27: Require Water Meter Upsize | L27: 1 | M27: Ea | N27: 3750 | O27: 3750
D28: Rough Plumbing | F28: 18 | G28: Water Softener | H28: 2020-05-12 | I28: Material | J28: Plumbing - Includes septic and well | K28: Water Softener - Electronic Control | L28: 1 | M28: Ea | N28: 1819 | O28: 1819
D29: Rough Plumbing | F29: 19 | G29: Flexible Gas Line | H29: 2020-05-12 | I29: Material | J29: Plumbing - Includes septic and well | K29: 1/2" Flexible Gas Line | L29: 1 | M29: Ea | N29: 50 | O29: 50
D30: Rough Plumbing | E30: Water Heater | F30: 20 | G30: Water Heater | H30: 2020-05-12 | I30: Material | J30: Plumbing - Includes septic and well | K30: Water Heater Tankless - Electrical | L30: 1 | M30: Ea | N30: 2200 | O30: 2200
D31: HVAC | F31: 22 | G31: Thermostat | H31: 2020-05-12 | I31: Material | J31: HVAC | K31: Thermostat Control | L31: 1 | M31: Ea | N31: 115 | O31: 115
D32: HVAC | F32: 23 | G32: Furnace - Forced Air | H32: 2020-05-12 | I32: Material | J32: HVAC | K32: Furnace - High Efficiency 120,000 BTU | L32: 1 | M32: Ea | N32: 6760 | O32: 6760
D33: HVAC | F33: 24 | G33: Central Air Conditioning | H33: 2020-05-12 | I33: Material | J33: HVAC | K33: Central Air 4 Ton Unit - 14 SEER | L33: 1 | M33: Ea | N33: 4780 | O33: 4780
D34: HVAC | F34: 25 | G34: Attic Fan | H34: 2020-05-12 | I34: Material | J34: HVAC | K34: Attic Fan - 36" | L34: 1 | M34: Ea | N34: 1800 | O34: 1800
D35: General Conditions | F35: 8 | G35: Boom/Lift | H35: 2020-05-12 | I35: Material | J35: General Conditions | K35: Boom/Lift Rental | L35: 7 | M35: Da | N35: 317 | O35: 2219

Sheet Labor
C2: Labor Report
C5: This Page Is Not Editable
D8: Section: | E8: Sub Category: | F8: Item #: | G8: Item Name: | H8: Date: | I8: Category: | J8: Trade: | K8: Description: | L8: Quantity: | M8: Unit: | N8: Unit Price: | O8: Extended Price:
D9: Excavating | F9: 26 | G9: Grade Site | H9: 2020-05-12 | I9: Labor | J9: Demolition and Site Work | K9: Prepare Site for Foundation - Includes Equipment | L9: 1 | M9: Ea | N9: 30000 | O9: 30000
D10: Excavating | F10: 28 | G10: Drainage | H10: 2020-05-12 | I10: Labor | J10: Demolition and Site Work | K10: Install Drainage Pipes Under House | L10: 1 | M10: Ea | N10: 1200 | O10: 1200
D11: Foundation | F11: 31 | G11: Footings - Labor | H11: 2020-05-12 | I11: Labor | J11: Concrete/Masonry | K11: Labor to build forms and pour foundation. | L11: 60 | M11: CY | N11: 500 | O11: 30000
D12: Garage | E12: Ceiling | F12: 36 | G12: Drywall, Prime and Paint | H12: 2020-05-12 | I12: Labor | J12: Drywall and Paint | K12: 5/8" Dry Wall - Labor | L12: 464 | M12: SF | N12: 3 | O12: 1392
D13: Garage | E13: Walls | F13: 39 | G13: Drywall, Prime and Paint | H13: 2020-05-12 | I13: Labor | J13: Drywall and Paint | K13: 5/8" Dry Wall - Labor | L13: 1172 | M13: SF | N13: 3 | O13: 3516
D14: Garage | E14: Finish Carpentry | F14: 42 | G14: Install Casing | H14: 2020-05-12 | I14: Labor | J14: Finish Carpentry
D15: Rough Electrical | F15: 9 | G15: Wire Residence | H15: 2020-05-12 | I15: Labor | J15: Electrical | K15: Rough Electrical Wiring | L15: 2050 | M15: SF | N15: 6.96 | O15: 14268
D16: Rough Plumbing | F16: 15 | G16: Rough In Plumbing | H16: 2020-05-12 | I16: Labor | J16: Plumbing - Includes septic and well | K16: Rough In Plumbing Residential | L16: 2050 | M16: SF | N16: 5.9 | O16: 12095
D17: Rough Plumbing | F17: 17 | G17: Concealed Fire Sprinkler | H17: 2020-05-12 | I17: Labor | J17: Plumbing - Includes septic and well | K17: Residential Fire Sprinkler System | L17: 2050 | M17: SF | N17: 5.44 | O17: 11152
D18: HVAC | F18: 21 | G18: Ductwork System/HVAC Install | H18: 2020-05-12 | I18: Labor | J18: HVAC | K18: Labor to Install HVAC System | L18: 2050 | M18: SF | N18: 4.95 | O18: 10147.5
D19: General Conditions | F19: 4 | G19: Residential Supervisor | H19: 2020-05-12 | I19: Labor | J19: General Conditions | K19: Residential Supervisor | L19: 250 | M19: Hr | N19: 88.96 | O19: 22240

Sheet Trade Summary
C2: Trade Summary
C5: This Page Is Not Editable
R7: Item #: | S7: Item Name: | T7: Date: | U7: Category: | V7: Description: | W7: Quantity: | X7: Unit: | Y7: Unit Price: | Z7: Extended Price:
D8: Section: | E8: Sub Category: | F8: Item #: | G8: Item Name: | H8: Date: | I8: Category: | J8: Trade: | K8: Description: | L8: Quantity: | M8: Unit: | N8: Unit Price: | O8: Extended Price: | Q8: Concrete/Masonry
D9: Foundation | F9: 29 | G9: Steel Rebar 5/8" | H9: 2020-05-12 | I9: Material | J9: Concrete/Masonry | K9: Rebar for Foundation | L9: 300 | M9: LF | N9: 2.8 | O9: 840 | R9: 29 | S9: Steel Rebar 5/8" | T9: 2020-05-12 | U9: Material | V9: Rebar for Foundation | W9: 300 | X9: LF | Y9: 2.8 | Z9: 840
D10: Foundation | F10: 30 | G10: Concrete Pier | H10: 2020-05-12 | I10: Material | J10: Concrete/Masonry | K10: Concrete Piers in Foundation | L10: 15 | M10: Ea | N10: 220 | O10: 3300 | R10: 30 | S10: Concrete Pier | T10: 2020-05-12 | U10: Material | V10: Concrete Piers in Foundation | W10: 15 | X10: Ea | Y10: 220 | Z10: 3300
D11: Foundation | F11: 31 | G11: Footings - Labor | H11: 2020-05-12 | I11: Labor | J11: Concrete/Masonry | K11: Labor to build forms and pour foundation. | L11: 60 | M11: CY | N11: 500 | O11: 30000 | R11: 31 | S11: Footings - Labor | T11: 2020-05-12 | U11: Labor | V11: Labor to build forms and pour foundation. | W11: 60 | X11: CY | Y11: 500 | Z11: 30000
D12: Foundation | F12: 32 | G12: Footings - Material | H12: 2020-05-12 | I12: Material | J12: Concrete/Masonry | K12: Materials to build forms and pour foundation. | L12: 60 | M12: CY | N12: 500 | O12: 30000 | R12: 32 | S12: Footings - Material | T12: 2020-05-12 | U12: Material | V12: Materials to build forms and pour foundation. | W12: 60 | X12: CY | Y12: 500 | Z12: 30000
D13: Foundation | F13: 33 | G13: Anchor Bolt | H13: 2020-05-12 | I13: Material | J13: Concrete/Masonry | K13: 1/2" x 9" Anchor bolts | L13: 60 | M13: Ea | N13: 7.5 | O13: 450 | R13: 33 | S13: Anchor Bolt | T13: 2020-05-12 | U13: Material | V13: 1/2" x 9" Anchor bolts | W13: 60 | X13: Ea | Y13: 7.5 | Z13: 450
D14: Foundation | F14: 34 | G14: Moisture Protection | H14: 2020-05-12 | I14: Material | J14: Concrete/Masonry | K14: Moisture Barrier Underneath House | L14: 2050 | M14: SF | N14: 0.55 | O14: 1127.5 | R14: 34 | S14: Moisture Protection | T14: 2020-05-12 | U14: Material | V14: Moisture Barrier Underneath House | W14: 2050 | X14: SF | Y14: 0.55 | Z14: 1127.5
D15: Foundation | F15: 35 | G15: Concrete Hold Down | H15: 2020-05-12 | I15: Material | J15: Concrete/Masonry | K15: Hold Down In Concrete | L15: 32 | M15: Ea | N15: 14.2 | O15: 454.4 | R15: 35 | S15: Concrete Hold Down | T15: 2020-05-12 | U15: Material | V15: Hold Down In Concrete | W15: 32 | X15: Ea | Y15: 14.2 | Z15: 454.4
D16: Excavating | F16: 26 | G16: Grade Site | H16: 2020-05-12 | I16: Labor | J16: Demolition and Site Work | K16: Prepare Site for Foundation - Includes Equipment | L16: 1 | M16: Ea | N16: 30000 | O16: 30000
D17: Excavating | F17: 27 | G17: Pea Gravel | H17: 2020-05-12 | I17: Material | J17: Demolition and Site Work | K17: Gravel Fill | L17: 10 | M17: CY | N17: 89 | O17: 890
D18: Excavating | F18: 28 | G18: Drainage | H18: 2020-05-12 | I18: Labor | J18: Demolition and Site Work | K18: Install Drainage Pipes Under House | L18: 1 | M18: Ea | N18: 1200 | O18: 1200 | Q18: Demolition and Site Work
D19: General Conditions | F19: 1 | G19: Dump/Loads | H19: 2020-05-12 | I19: Temporary | J19: Demolition and Site Work | K19: Dumper Loads | L19: 3 | M19: Each | N19: 500 | O19: 1500 | R19: 26 | S19: Grade Site | T19: 2020-05-12 | U19: Labor | V19: Prepare Site for Foundation - Includes Equipment | W19: 1 | X19: Ea | Y19: 30000 | Z19: 30000
D20: General Conditions | F20: 2 | G20: Temporary Fencing | H20: 2020-05-12 | I20: Temporary | J20: Demolition and Site Work | K20: Temporary Chainlink Fence | L20: 750 | M20: LF | N20: 1.5 | O20: 1125 | R20: 27 | S20: Pea Gravel | T20: 2020-05-12 | U20: Material | V20: Gravel Fill | W20: 10 | X20: CY | Y20: 89 | Z20: 890
D21: Garage | E21: Ceiling | F21: 36 | G21: Drywall, Prime and Paint | H21: 2020-05-12 | I21: Labor | J21: Drywall and Paint | K21: 5/8" Dry Wall - Labor | L21: 464 | M21: SF | N21: 3 | O21: 1392 | R21: 28 | S21: Drainage | T21: 2020-05-12 | U21: Labor | V21: Install Drainage Pipes Under House | W21: 1 | X21: Ea | Y21: 1200 | Z21: 1200
D22: Garage | E22: Ceiling | F22: 37 | G22: 5/8" Dry Wall | H22: 2020-05-12 | I22: Material | J22: Drywall and Paint | K22: 5/8" Dry Wall Sheet 4' x 8' | L22: 16 | M22: Ea | N22: 9.5 | O22: 152 | R22: 1 | S22: Dump/Loads | T22: 2020-05-12 | U22: Temporary | V22: Dumper Loads | W22: 3 | X22: Each | Y22: 500 | Z22: 1500
D23: Garage | E23: Doors/Windows/Trim | F23: 38 | G23: Seal/Prime and Paint | H23: 2020-05-12 | I23: Material | J23: Drywall and Paint | K23: Primer and Paint | L23: 464 | M23: SF | N23: 0.45 | O23: 208.8 | R23: 2 | S23: Temporary Fencing | T23: 2020-05-12 | U23: Temporary | V23: Temporary Chainlink Fence | W23: 750 | X23: LF | Y23: 1.5 | Z23: 1125
D24: Garage | E24: Walls | F24: 39 | G24: Drywall, Prime and Paint | H24: 2020-05-12 | I24: Labor | J24: Drywall and Paint | K24: 5/8" Dry Wall - Labor | L24: 1172 | M24: SF | N24: 3 | O24: 3516
D25: Garage | E25: Ceiling | F25: 40 | G25: 5/8" Dry Wall | H25: 2020-05-12 | I25: Material | J25: Drywall and Paint | K25: 5/8" Dry Wall Sheet 4' x 8' | L25: 38 | M25: Ea | N25: 9.5 | O25: 361
D26: Garage | E26: Walls | F26: 41 | G26: Seal/Prime and Paint | H26: 2020-05-12 | I26: Material | J26: Drywall and Paint | K26: Primer and Paint | L26: 1172 | M26: SF | N26: 0.45 | O26: 527.4 | Q26: Drywall and Paint
D27: Garage | E27: Finish Carpentry | F27: 42 | G27: Paint Door Casing | H27: 2020-05-12 | I27: Material | J27: Drywall and Paint | K27: Paint for Door Casing | L27: 32 | M27: LF | N27: 0.25 | O27: 8 | R27: 36 | S27: Drywall, Prime and Paint | T27: 2020-05-12 | U27: Labor | V27: 5/8" Dry Wall - Labor | W27: 464 | X27: SF | Y27: 3 | Z27: 1392
D28: Rough Electrical | F28: 9 | G28: Wire Residence | H28: 2020-05-12 | I28: Labor | J28: Electrical | K28: Rough Electrical Wiring | L28: 2050 | M28: SF | N28: 6.96 | O28: 14268 | R28: 37 | S28: 5/8" Dry Wall | T28: 2020-05-12 | U28: Material | V28: 5/8" Dry Wall Sheet 4' x 8' | W28: 16 | X28: Ea | Y28: 9.5 | Z28: 152
D29: Rough Electrical | F29: 10 | G29: Meter Base and Disc. | H29: 2020-05-12 | I29: Material | J29: Electrical | K29: Meter Base and Disconnect | L29: 1 | M29: Ea | N29: 914 | O29: 914 | R29: 38 | S29: Seal/Prime and Paint | T29: 2020-05-12 | U29: Material | V29: Primer and Paint | W29: 464 | X29: SF | Y29: 0.45 | Z29: 208.8
D30: Rough Electrical | F30: 11 | G30: Grounding Rod | H30: 2020-05-12 | I30: Material | J30: Electrical | K30: Grounding Rod for House | L30: 1 | M30: Ea | N30: 149.5 | O30: 149.5 | R30: 39 | S30: Drywall, Prime and Paint | T30: 2020-05-12 | U30: Labor | V30: 5/8" Dry Wall - Labor | W30: 1172 | X30: SF | Y30: 3 | Z30: 3516
D31: Rough Electrical | F31: 12 | G31: #12 Gauge Wire | H31: 2020-05-12 | I31: Material | J31: Electrical | K31: #12 Residential Gauge Wire | L31: 1000 | M31: LF | N31: 0.9 | O31: 900 | R31: 40 | S31: 5/8" Dry Wall | T31: 2020-05-12 | U31: Material | V31: 5/8" Dry Wall Sheet 4' x 8' | W31: 38 | X31: Ea | Y31: 9.5 | Z31: 361
D32: Rough Electrical | F32: 13 | G32: Exterior Lights | H32: 2020-05-12 | I32: Material | J32: Electrical | K32: Exterior Lighting | L32: 6 | M32: Ea | N32: 150 | O32: 900 | R32: 41 | S32: Seal/Prime and Paint | T32: 2020-05-12 | U32: Material | V32: Primer and Paint | W32: 1172 | X32: SF | Y32: 0.45 | Z32: 527.4
D33: Rough Electrical | F33: 14 | G33: CO/Smoke Detectors | H33: 2020-05-12 | I33: Material | J33: Electrical | K33: Carbon Monoxide and Smoke Detector | L33: 10 | M33: Ea | N33: 65 | O33: 650 | R33: 42 | S33: Paint Door Casing | T33: 2020-05-12 | U33: Material | V33: Paint for Door Casing | W33: 32 | X33: LF | Y33: 0.25 | Z33: 8
D34: Garage | E34: Finish Carpentry | F34: 42 | G34: Door Casing | H34: 2020-05-12 | I34: Material | J34: Finish Carpentry | K34: Door Casing - 3-1/4" | L34: 32 | M34: LF | N34: 1.9 | O34: 60.8
D35: Garage | E35: Finish Carpentry | F35: 42 | G35: Install Casing | H35: 2020-05-12 | I35: Labor | J35: Finish Carpentry
D36: General Conditions | F36: 3 | G36: Architectural Drawings | H36: 2020-05-12 | I36: Professional Fees | J36: General Conditions | K36: Drawing Building Plans | L36: 1 | M36: Each | N36: 15000 | O36: 15000 | Q36: Electrical
D37: General Conditions | F37: 4 | G37: Residential Supervisor | H37: 2020-05-12 | I37: Labor | J37: General Conditions | K37: Residential Supervisor | L37: 250 | M37: Hr | N37: 88.96 | O37: 22240 | R37: 9 | S37: Wire Residence | T37: 2020-05-12 | U37: Labor | V37: Rough Electrical Wiring | W37: 2050 | X37: SF | Y37: 6.96 | Z37: 14268
D38: General Conditions | F38: 5 | G38: Soil Engineering | H38: 2020-05-12 | I38: Professional Fees | J38: General Conditions | K38: Soil Testing and Inspections | L38: 1 | M38: Each | N38: 2500 | O38: 2500 | R38: 10 | S38: Meter Base and Disc. | T38: 2020-05-12 | U38: Material | V38: Meter Base and Disconnect | W38: 1 | X38: Ea | Y38: 914 | Z38: 914
D39: General Conditions | F39: 6 | G39: Cal Green/Title 24 | H39: 2020-05-12 | I39: Professional Fees | J39: General Conditions | K39: Cal Green Inspections | L39: 1 | M39: Each | N39: 2500 | O39: 2500 | R39: 11 | S39: Grounding Rod | T39: 2020-05-12 | U39: Material | V39: Grounding Rod for House | W39: 1 | X39: Ea | Y39: 149.5 | Z39: 149.5
D40: General Conditions | F40: 7 | G40: Drainage Plan Update | H40: 2020-05-12 | I40: Professional Fees | J40: General Conditions | K40: Civil and Drain Plans | L40: 1 | M40: Each | N40: 2000 | O40: 2000 | R40: 12 | S40: #12 Gauge Wire | T40: 2020-05-12 | U40: Material | V40: #12 Residential Gauge Wire | W40: 1000 | X40: LF | Y40: 0.9 | Z40: 900
D41: General Conditions | F41: 8 | G41: Boom/Lift | H41: 2020-05-12 | I41: Material | J41: General Conditions | K41: Boom/Lift Rental | L41: 7 | M41: Da | N41: 317 | O41: 2219 | R41: 13 | S41: Exterior Lights | T41: 2020-05-12 | U41: Material | V41: Exterior Lighting | W41: 6 | X41: Ea | Y41: 150 | Z41: 900
D42: HVAC | F42: 21 | G42: Ductwork System/HVAC Install | H42: 2020-05-12 | I42: Labor | J42: HVAC | K42: Labor to Install HVAC System | L42: 2050 | M42: SF | N42: 4.95 | O42: 10147.5 | R42: 14 | S42: CO/Smoke Detectors | T42: 2020-05-12 | U42: Material | V42: Carbon Monoxide and Smoke Detector | W42: 10 | X42: Ea | Y42: 65 | Z42: 650
D43: HVAC | F43: 22 | G43: Thermostat | H43: 2020-05-12 | I43: Material | J43: HVAC | K43: Thermostat Control | L43: 1 | M43: Ea | N43: 115 | O43: 115
D44: HVAC | F44: 23 | G44: Furnace - Forced Air | H44: 2020-05-12 | I44: Material | J44: HVAC | K44: Furnace - High Efficiency 120,000 BTU | L44: 1 | M44: Ea | N44: 6760 | O44: 6760
D45: HVAC | F45: 24 | G45: Central Air Conditioning | H45: 2020-05-12 | I45: Material | J45: HVAC | K45: Central Air 4 Ton Unit - 14 SEER | L45: 1 | M45: Ea | N45: 4780 | O45: 4780 | Q45: Finish Carpentry
D46: HVAC | F46: 25 | G46: Attic Fan | H46: 2020-05-12 | I46: Material | J46: HVAC | K46: Attic Fan - 36" | L46: 1 | M46: Ea | N46: 1800 | O46: 1800 | R46: 42 | S46: Door Casing | T46: 2020-05-12 | U46: Material | V46: Door Casing - 3-1/4" | W46: 32 | X46: LF | Y46: 1.9 | Z46: 60.8
D47: Rough Plumbing | F47: 15 | G47: Rough In Plumbing | H47: 2020-05-12 | I47: Labor | J47: Plumbing - Includes septic and well | K47: Rough In Plumbing Residential | L47: 2050 | M47: SF | N47: 5.9 | O47: 12095 | R47: 42 | S47: Install Casing | T47: 2020-05-12 | U47: Labor
D48: Rough Plumbing | F48: 16 | G48: Water Meter Upsize | H48: 2020-05-12 | I48: Material | J48: Plumbing - Includes septic and well | K48: Require Water Meter Upsize | L48: 1 | M48: Ea | N48: 3750 | O48: 3750
D49: Rough Plumbing | F49: 17 | G49: Concealed Fire Sprinkler | H49: 2020-05-12 | I49: Labor | J49: Plumbing - Includes septic and well | K49: Residential Fire Sprinkler System | L49: 2050 | M49: SF | N49: 5.44 | O49: 11152
D50: Rough Plumbing | F50: 18 | G50: Water Softener | H50: 2020-05-12 | I50: Material | J50: Plumbing - Includes septic and well | K50: Water Softener - Electronic Control | L50: 1 | M50: Ea | N50: 1819 | O50: 1819 | Q50: General Conditions
D51: Rough Plumbing | F51: 19 | G51: Flexible Gas Line | H51: 2020-05-12 | I51: Material | J51: Plumbing - Includes septic and well | K51: 1/2" Flexible Gas Line | L51: 1 | M51: Ea | N51: 50 | O51: 50 | R51: 3 | S51: Architectural Drawings | T51: 2020-05-12 | U51: Professional Fees | V51: Drawing Building Plans | W51: 1 | X51: Each | Y51: 15000 | Z51: 15000
D52: Rough Plumbing | E52: Water Heater | F52: 20 | G52: Water Heater | H52: 2020-05-12 | I52: Material | J52: Plumbing - Includes septic and well | K52: Water Heater Tankless - Electrical | L52: 1 | M52: Ea | N52: 2200 | O52: 2200 | R52: 4 | S52: Residential Supervisor | T52: 2020-05-12 | U52: Labor | V52: Residential Supervisor | W52: 250 | X52: Hr | Y52: 88.96 | Z52: 22240
D53: Garage | R53: 5 | S53: Soil Engineering | T53: 2020-05-12 | U53: Professional Fees | V53: Soil Testing and Inspections | W53: 1 | X53: Each | Y53: 2500 | Z53: 2500
D54: Floor Framing | R54: 6 | S54: Cal Green/Title 24 | T54: 2020-05-12 | U54: Professional Fees | V54: Cal Green Inspections | W54: 1 | X54: Each | Y54: 2500 | Z54: 2500
D55: Master Bath | R55: 7 | S55: Drainage Plan Update | T55: 2020-05-12 | U55: Professional Fees | V55: Civil and Drain Plans | W55: 1 | X55: Each | Y55: 2000 | Z55: 2000
R56: 8 | S56: Boom/Lift | T56: 2020-05-12 | U56: Material | V56: Boom/Lift Rental | W56: 7 | X56: Da | Y56: 317 | Z56: 2219
Q59: HVAC
D60: General Conditions | O60: 0 | R60: 21 | S60: Ductwork System/HVAC Install | T60: 2020-05-12 | U60: Labor | V60: Labor to Install HVAC System | W60: 2050 | X60: SF | Y60: 4.95 | Z60: 10147.5
D61: General Conditions | O61: 0 | R61: 22 | S61: Thermostat | T61: 2020-05-12 | U61: Material | V61: Thermostat Control | W61: 1 | X61: Ea | Y61: 115 | Z61: 115
D62: General Conditions | O62: 0 | R62: 23 | S62: Furnace - Forced Air | T62: 2020-05-12 | U62: Material | V62: Furnace - High Efficiency 120,000 BTU | W62: 1 | X62: Ea | Y62: 6760 | Z62: 6760
D63: General Conditions | O63: 0 | R63: 24 | S63: Central Air Conditioning | T63: 2020-05-12 | U63: Material | V63: Central Air 4 Ton Unit - 14 SEER | W63: 1 | X63: Ea | Y63: 4780 | Z63: 4780
D64: General Conditions | O64: 0 | R64: 25 | S64: Attic Fan | T64: 2020-05-12 | U64: Material | V64: Attic Fan - 36" | W64: 1 | X64: Ea | Y64: 1800 | Z64: 1800
D65: General Conditions | O65: 0
D66: General Conditions | O66: 0
D67: General Conditions | O67: 0 | Q67: Plumbing - Includes septic and well
D68: General Conditions | O68: 0 | R68: 15 | S68: Rough In Plumbing | T68: 2020-05-12 | U68: Labor | V68: Rough In Plumbing Residential | W68: 2050 | X68: SF | Y68: 5.9 | Z68: 12095
D69: General Conditions | O69: 0 | R69: 16 | S69: Water Meter Upsize | T69: 2020-05-12 | U69: Material | V69: Require Water Meter Upsize | W69: 1 | X69: Ea | Y69: 3750 | Z69: 3750
D70: General Conditions | O70: 0 | R70: 17 | S70: Concealed Fire Sprinkler | T70: 2020-05-12 | U70: Labor | V70: Residential Fire Sprinkler System | W70: 2050 | X70: SF | Y70: 5.44 | Z70: 11152
D71: General Conditions | O71: 0 | R71: 18 | S71: Water Softener | T71: 2020-05-12 | U71: Material | V71: Water Softener - Electronic Control | W71: 1 | X71: Ea | Y71: 1819 | Z71: 1819
R72: 19 | S72: Flexible Gas Line | T72: 2020-05-12 | U72: Material | V72: 1/2" Flexible Gas Line | W72: 1 | X72: Ea | Y72: 50 | Z72: 50
R73: 20 | S73: Water Heater | T73: 2020-05-12 | U73: Material | V73: Water Heater Tankless - Electrical | W73: 1 | X73: Ea | Y73: 2200 | Z73: 2200
Z105: 0
Z109: 0
Z113: 0
Z117: 0
Z121: 0
Z125: 0
Z129: 0
Z133: 0
Z137: 0
Z141: 0
Z145: 0
Z149: 0

Sheet Report Summary
C2: Report Summary
C5: This Page Is Not Editable
D8: Materials Total: | E8: =SUMIFS(tblGeneralConditions[Extended Price:],tblGeneralConditions[Category:],"Material")+SUMIFS(tblUtilities[Extended Price:],tblUtilities[Category:],"Material")+SUMIFS(tblFoundation[Extended Price:],tblFoundation[Category:],"Material")+SUMIFS(tblExterior[Extended Price:],tblExterior[Category:],"Material")+SUMIFS(tblInterior[Extended Price:],tblInterior[Category:],"Material")+SUMIFS(tblExteriorStructures[Extended Price:],tblExteriorStructures[Category:],"Material") -> 64068.4 | H8: Note:
D9: Labor Total: | E9: =SUMIFS(tblGeneralConditions[Extended Price:],tblGeneralConditions[Category:],"Labor")+SUMIFS(tblUtilities[Extended Price:],tblUtilities[Category:],"Labor")+SUMIFS(tblFoundation[Extended Price:],tblFoundation[Category:],"Labor")+SUMIFS(tblExterior[Extended Price:],tblExterior[Category:],"Labor")+SUMIFS(tblInterior[Extended Price:],tblInterior[Category:],"Labor")+SUMIFS(tblExteriorStructures[Extended Price:],tblExteriorStructures[Category:],"Labor") -> 135362.5 | H9: Page should reflect total building cost from all line items.
D10: Temporary Totals: | E10: =SUMIFS(tblGeneralConditions[Extended Price:],tblGeneralConditions[Category:],"Temporary")+SUMIFS(tblUtilities[Extended Price:],tblUtilities[Category:],"Temporary")+SUMIFS(tblFoundation[Extended Price:],tblFoundation[Category:],"Temporary")+SUMIFS(tblExterior[Extended Price:],tblExterior[Category:],"Temporary")+SUMIFS(tblInterior[Extended Price:],tblInterior[Category:],"Temporary")+SUMIFS(tblExteriorStructures[Extended Price:],tblExteriorStructures[Category:],"Temporary") -> 2625 | H10: There should be a calculated sales tax from all material items.
D11: Professional Fees: | E11: =SUMIFS(tblGeneralConditions[Extended Price:],tblGeneralConditions[Category:],"Professional Fees")+SUMIFS(tblUtilities[Extended Price:],tblUtilities[Category:],"Professional Fees")+SUMIFS(tblFoundation[Extended Price:],tblFoundation[Category:],"Professional Fees")+SUMIFS(tblExterior[Extended Price:],tblExterior[Category:],"Professional Fees")+SUMIFS(tblInterior[Extended Price:],tblInterior[Category:],"Professional Fees")+SUMIFS(tblExteriorStructures[Extended Price:],tblExteriorStructures[Category:],"Professional Fees") -> 22000
H12: Professional Fees is going to be architecture, engineering, survey, soil test, permits, etc.
D14: Sub Total: | E14: =SUM(E8:E11) -> 224055.9 | H14: Contractor Profit and Overhead are 10% each of the sub total cost.
H15: Sales tax is added after the contractor profit and overhead based on material cost.
D17: Contractor Overhead and Profit: | E17: ='Property Description'!E20*(E19+E14) -> 22982.2056 | H17: Total Job Cost equals sub total, contractor profit and overhead and sales tax.
D19: Material Sales Tax: | E19: ='Property Description'!E18*E8 -> 5766.156 | H19: tax only applies to the materials
D22: Total Job Cost: | E22: =E17+E19+E14 -> 252804.2616

Sheet 16D
C2: 16D
C5: This Page Is Not Editable
D7: 1000 | E7: General Conditions | F7: General Conditions | G7: =SUMIFS(tblGeneralConditions[Extended Price:],tblGeneralConditions[Trade:],'16D'!F7)+SUMIFS(tblUtilities[Extended Price:],tblUtilities[Trade:],'16D'!F7)+SUMIFS(tblFoundation[Extended Price:],tblFoundation[Trade:],'16D'!F7)+SUMIFS(tblExterior[Extended Price:],tblExterior[Trade:],'16D'!F7)+SUMIFS(tblInterior[Extended Price:],tblInterior[Trade:],'16D'!F7)+SUMIFS(tblExteriorStructures[Extended Price:],tblExteriorStructures[Trade:],'16D'!F7) -> 46459
D9: 2000 | E9: Demolition and Site Work | F9: Demolition and Site Work | G9: =SUMIFS(tblGeneralConditions[Extended Price:],tblGeneralConditions[Trade:],'16D'!F9)+SUMIFS(tblUtilities[Extended Price:],tblUtilities[Trade:],'16D'!F9)+SUMIFS(tblFoundation[Extended Price:],tblFoundation[Trade:],'16D'!F9)+SUMIFS(tblExterior[Extended Price:],tblExterior[Trade:],'16D'!F9)+SUMIFS(tblInterior[Extended Price:],tblInterior[Trade:],'16D'!F9)+SUMIFS(tblExteriorStructures[Extended Price:],tblExteriorStructures[Trade:],'16D'!F9) -> 38975
D11: 3000 | E11: Concrete/Masonry | F11: Concrete/Masonry | G11: =SUMIFS(tblGeneralConditions[Extended Price:],tblGeneralConditions[Trade:],'16D'!F11)+SUMIFS(tblUtilities[Extended Price:],tblUtilities[Trade:],'16D'!F11)+SUMIFS(tblFoundation[Extended Price:],tblFoundation[Trade:],'16D'!F11)+SUMIFS(tblExterior[Extended Price:],tblExterior[Trade:],'16D'!F11)+SUMIFS(tblInterior[Extended Price:],tblInterior[Trade:],'16D'!F11)+SUMIFS(tblExteriorStructures[Extended Price:],tblExteriorStructures[Trade:],'16D'!F11) -> 66171.9
D13: 4000 | E13: Rough Carpentry | F13: Rough Carpentry | G13: =SUMIFS(tblGeneralConditions[Extended Price:],tblGeneralConditions[Trade:],'16D'!F13)+SUMIFS(tblUtilities[Extended Price:],tblUtilities[Trade:],'16D'!F13)+SUMIFS(tblFoundation[Extended Price:],tblFoundation[Trade:],'16D'!F13)+SUMIFS(tblExterior[Extended Price:],tblExterior[Trade:],'16D'!F13)+SUMIFS(tblInterior[Extended Price:],tblInterior[Trade:],'16D'!F13)+SUMIFS(tblExteriorStructures[Extended Price:],tblExteriorStructures[Trade:],'16D'!F13) -> 0
D15: 5000 | E15: Finish Carpentry | F15: Finish Carpentry | G15: =SUMIFS(tblGeneralConditions[Extended Price:],tblGeneralConditions[Trade:],'16D'!F15)+SUMIFS(tblUtilities[Extended Price:],tblUtilities[Trade:],'16D'!F15)+SUMIFS(tblFoundation[Extended Price:],tblFoundation[Trade:],'16D'!F15)+SUMIFS(tblExterior[Extended Price:],tblExterior[Trade:],'16D'!F15)+SUMIFS(tblInterior[Extended Price:],tblInterior[Trade:],'16D'!F15)+SUMIFS(tblExteriorStructures[Extended Price:],tblExteriorStructures[Trade:],'16D'!F15) -> 0
D17: 6000 | E17: Doors and Windows | F17: Doors and Windows | G17: =SUMIFS(tblGeneralConditions[Extended Price:],tblGeneralConditions[Trade:],'16D'!F17)+SUMIFS(tblUtilities[Extended Price:],tblUtilities[Trade:],'16D'!F17)+SUMIFS(tblFoundation[Extended Price:],tblFoundation[Trade:],'16D'!F17)+SUMIFS(tblExterior[Extended Price:],tblExterior[Trade:],'16D'!F17)+SUMIFS(tblInterior[Extended Price:],tblInterior[Trade:],'16D'!F17)+SUMIFS(tblExteriorStructures[Extended Price:],tblExteriorStructures[Trade:],'16D'!F17) -> 0
D19: 7000 | E19: Drywall and Paint | F19: Drywall and Paint | G19: =SUMIFS(tblGeneralConditions[Extended Price:],tblGeneralConditions[Trade:],'16D'!F19)+SUMIFS(tblUtilities[Extended Price:],tblUtilities[Trade:],'16D'!F19)+SUMIFS(tblFoundation[Extended Price:],tblFoundation[Trade:],'16D'!F19)+SUMIFS(tblExterior[Extended Price:],tblExterior[Trade:],'16D'!F19)+SUMIFS(tblInterior[Extended Price:],tblInterior[Trade:],'16D'!F19)+SUMIFS(tblExteriorStructures[Extended Price:],tblExteriorStructures[Trade:],'16D'!F19) -> 0
D21: 8000 | E21: Insulation | F21: Insulation | G21: =SUMIFS(tblGeneralConditions[Extended Price:],tblGeneralConditions[Trade:],'16D'!F21)+SUMIFS(tblUtilities[Extended Price:],tblUtilities[Trade:],'16D'!F21)+SUMIFS(tblFoundation[Extended Price:],tblFoundation[Trade:],'16D'!F21)+SUMIFS(tblExterior[Extended Price:],tblExterior[Trade:],'16D'!F21)+SUMIFS(tblInterior[Extended Price:],tblInterior[Trade:],'16D'!F21)+SUMIFS(tblExteriorStructures[Extended Price:],tblExteriorStructures[Trade:],'16D'!F21) -> 0
D23: 9000 | E23: Flooring | F23: Flooring | G23: =SUMIFS(tblGeneralConditions[Extended Price:],tblGeneralConditions[Trade:],'16D'!F23)+SUMIFS(tblUtilities[Extended Price:],tblUtilities[Trade:],'16D'!F23)+SUMIFS(tblFoundation[Extended Price:],tblFoundation[Trade:],'16D'!F23)+SUMIFS(tblExterior[Extended Price:],tblExterior[Trade:],'16D'!F23)+SUMIFS(tblInterior[Extended Price:],tblInterior[Trade:],'16D'!F23)+SUMIFS(tblExteriorStructures[Extended Price:],tblExteriorStructures[Trade:],'16D'!F23) -> 0
D25: 10000 | E25: Bath | F25: Bathrooms | G25: =SUMIFS(tblGeneralConditions[Extended Price:],tblGeneralConditions[Trade:],'16D'!F25)+SUMIFS(tblUtilities[Extended Price:],tblUtilities[Trade:],'16D'!F25)+SUMIFS(tblFoundation[Extended Price:],tblFoundation[Trade:],'16D'!F25)+SUMIFS(tblExterior[Extended Price:],tblExterior[Trade:],'16D'!F25)+SUMIFS(tblInterior[Extended Price:],tblInterior[Trade:],'16D'!F25)+SUMIFS(tblExteriorStructures[Extended Price:],tblExteriorStructures[Trade:],'16D'!F25) -> 0
D27: 11000 | E27: Kitchen | F27: Kitchen and Appliances | G27: =SUMIFS(tblGeneralConditions[Extended Price:],tblGeneralConditions[Trade:],'16D'!F27)+SUMIFS(tblUtilities[Extended Price:],tblUtilities[Trade:],'16D'!F27)+SUMIFS(tblFoundation[Extended Price:],tblFoundation[Trade:],'16D'!F27)+SUMIFS(tblExterior[Extended Price:],tblExterior[Trade:],'16D'!F27)+SUMIFS(tblInterior[Extended Price:],tblInterior[Trade:],'16D'!F27)+SUMIFS(tblExteriorStructures[Extended Price:],tblExteriorStructures[Trade:],'16D'!F27) -> 0
D29: 12000 | E29: HVAC - Mechanical | F29: HVAC | G29: =SUMIFS(tblGeneralConditions[Extended Price:],tblGeneralConditions[Trade:],'16D'!F29)+SUMIFS(tblUtilities[Extended Price:],tblUtilities[Trade:],'16D'!F29)+SUMIFS(tblFoundation[Extended Price:],tblFoundation[Trade:],'16D'!F29)+SUMIFS(tblExterior[Extended Price:],tblExterior[Trade:],'16D'!F29)+SUMIFS(tblInterior[Extended Price:],tblInterior[Trade:],'16D'!F29)+SUMIFS(tblExteriorStructures[Extended Price:],tblExteriorStructures[Trade:],'16D'!F29) -> 23602.5
D31: 13000 | E31: Plumbing | F31: Plumbing - Includes septic and well | G31: =SUMIFS(tblGeneralConditions[Extended Price:],tblGeneralConditions[Trade:],'16D'!F31)+SUMIFS(tblUtilities[Extended Price:],tblUtilities[Trade:],'16D'!F31)+SUMIFS(tblFoundation[Extended Price:],tblFoundation[Trade:],'16D'!F31)+SUMIFS(tblExterior[Extended Price:],tblExterior[Trade:],'16D'!F31)+SUMIFS(tblInterior[Extended Price:],tblInterior[Trade:],'16D'!F31)+SUMIFS(tblExteriorStructures[Extended Price:],tblExteriorStructures[Trade:],'16D'!F31) -> 31066
D33: 14000 | E33: Electrical | F33: Electrical | G33: =SUMIFS(tblGeneralConditions[Extended Price:],tblGeneralConditions[Trade:],'16D'!F33)+SUMIFS(tblUtilities[Extended Price:],tblUtilities[Trade:],'16D'!F33)+SUMIFS(tblFoundation[Extended Price:],tblFoundation[Trade:],'16D'!F33)+SUMIFS(tblExterior[Extended Price:],tblExterior[Trade:],'16D'!F33)+SUMIFS(tblInterior[Extended Price:],tblInterior[Trade:],'16D'!F33)+SUMIFS(tblExteriorStructures[Extended Price:],tblExteriorStructures[Trade:],'16D'!F33) -> 17781.5
D35: 15000 | E35: Roofing | F35: Roofing | G35: =SUMIFS(tblGeneralConditions[Extended Price:],tblGeneralConditions[Trade:],'16D'!F35)+SUMIFS(tblUtilities[Extended Price:],tblUtilities[Trade:],'16D'!F35)+SUMIFS(tblFoundation[Extended Price:],tblFoundation[Trade:],'16D'!F35)+SUMIFS(tblExterior[Extended Price:],tblExterior[Trade:],'16D'!F35)+SUMIFS(tblInterior[Extended Price:],tblInterior[Trade:],'16D'!F35)+SUMIFS(tblExteriorStructures[Extended Price:],tblExteriorStructures[Trade:],'16D'!F35) -> 0
D37: 16000 | E37: Landscape and Fencing | F37: Landscape and Fencing - Includes any pool, fountain and irrigation work. | G37: =SUMIFS(tblGeneralConditions[Extended Price:],tblGeneralConditions[Trade:],'16D'!F37)+SUMIFS(tblUtilities[Extended Price:],tblUtilities[Trade:],'16D'!F37)+SUMIFS(tblFoundation[Extended Price:],tblFoundation[Trade:],'16D'!F37)+SUMIFS(tblExterior[Extended Price:],tblExterior[Trade:],'16D'!F37)+SUMIFS(tblInterior[Extended Price:],tblInterior[Trade:],'16D'!F37)+SUMIFS(tblExteriorStructures[Extended Price:],tblExteriorStructures[Trade:],'16D'!F37) -> 0

Sheet Line Items
C2: Line Item
C5: This Page Is Not Editable
D8: Section: | E8: Sub Category: | F8: Item #: | G8: Item Name: | H8: Date: | I8: Category: | J8: Trade: | K8: Description: | L8: Quantity: | M8: Unit: | N8: Unit Price: | O8: Extended Price:
D9: Rough Electrical | F9: 12 | G9: #12 Gauge Wire | H9: 2020-05-12 | I9: Material | J9: Electrical | K9: #12 Residential Gauge Wire | L9: 1000 | M9: LF | N9: 0.9 | O9: 900
D10: Garage | E10: Ceiling | F10: 37 | G10: 5/8" Dry Wall | H10: 2020-05-12 | I10: Material | J10: Drywall and Paint | K10: 5/8" Dry Wall Sheet 4' x 8' | L10: 16 | M10: Ea | N10: 9.5 | O10: 152
D11: Garage | E11: Ceiling | F11: 40 | G11: 5/8" Dry Wall | H11: 2020-05-12 | I11: Material | J11: Drywall and Paint | K11: 5/8" Dry Wall Sheet 4' x 8' | L11: 38 | M11: Ea | N11: 9.5 | O11: 361
D12: Foundation | F12: 33 | G12: Anchor Bolt | H12: 2020-05-12 | I12: Material | J12: Concrete/Masonry | K12: 1/2" x 9" Anchor bolts | L12: 60 | M12: Ea | N12: 7.5 | O12: 450
D13: HVAC | F13: 25 | G13: Attic Fan | H13: 2020-05-12 | I13: Material | J13: HVAC | K13: Attic Fan - 36" | L13: 1 | M13: Ea | N13: 1800 | O13: 1800
D14: General Conditions | F14: 8 | G14: Boom/Lift | H14: 2020-05-12 | I14: Material | J14: General Conditions | K14: Boom/Lift Rental | L14: 7 | M14: Da | N14: 317 | O14: 2219
D15: HVAC | F15: 24 | G15: Central Air Conditioning | H15: 2020-05-12 | I15: Material | J15: HVAC | K15: Central Air 4 Ton Unit - 14 SEER | L15: 1 | M15: Ea | N15: 4780 | O15: 4780
D16: Rough Electrical | F16: 14 | G16: CO/Smoke Detectors | H16: 2020-05-12 | I16: Material | J16: Electrical | K16: Carbon Monoxide and Smoke Detector | L16: 10 | M16: Ea | N16: 65 | O16: 650
D17: Rough Plumbing | F17: 17 | G17: Concealed Fire Sprinkler | H17: 2020-05-12 | I17: Labor | J17: Plumbing - Includes septic and well | K17: Residential Fire Sprinkler System | L17: 2050 | M17: SF | N17: 5.44 | O17: 11152
D18: Foundation | F18: 35 | G18: Concrete Hold Down | H18: 2020-05-12 | I18: Material | J18: Concrete/Masonry | K18: Hold Down In Concrete | L18: 32 | M18: Ea | N18: 14.2 | O18: 454.4
D19: Foundation | F19: 30 | G19: Concrete Pier | H19: 2020-05-12 | I19: Material | J19: Concrete/Masonry | K19: Concrete Piers in Foundation | L19: 15 | M19: Ea | N19: 220 | O19: 3300
D20: Garage | E20: Finish Carpentry | F20: 42 | G20: Door Casing | H20: 2020-05-12 | I20: Material | J20: Finish Carpentry | K20: Door Casing - 3-1/4" | L20: 32 | M20: LF | N20: 1.9 | O20: 60.8
D21: Excavating | F21: 28 | G21: Drainage | H21: 2020-05-12 | I21: Labor | J21: Demolition and Site Work | K21: Install Drainage Pipes Under House | L21: 1 | M21: Ea | N21: 1200 | O21: 1200
D22: Garage | E22: Ceiling | F22: 36 | G22: Drywall, Prime and Paint | H22: 2020-05-12 | I22: Labor | J22: Drywall and Paint | K22: 5/8" Dry Wall - Labor | L22: 464 | M22: SF | N22: 3 | O22: 1392
D23: Garage | E23: Walls | F23: 39 | G23: Drywall, Prime and Paint | H23: 2020-05-12 | I23: Labor | J23: Drywall and Paint | K23: 5/8" Dry Wall - Labor | L23: 1172 | M23: SF | N23: 3 | O23: 3516
D24: HVAC | F24: 21 | G24: Ductwork System/HVAC Install | H24: 2020-05-12 | I24: Labor | J24: HVAC | K24: Labor to Install HVAC System | L24: 2050 | M24: SF | N24: 4.95 | O24: 10147.5
D25: Rough Electrical | F25: 13 | G25: Exterior Lights | H25: 2020-05-12 | I25: Material | J25: Electrical | K25: Exterior Lighting | L25: 6 | M25: Ea | N25: 150 | O25: 900
D26: Rough Plumbing | F26: 19 | G26: Flexible Gas Line | H26: 2020-05-12 | I26: Material | J26: Plumbing - Includes septic and well | K26: 1/2" Flexible Gas Line | L26: 1 | M26: Ea | N26: 50 | O26: 50
D27: Foundation | F27: 31 | G27: Footings - Labor | H27: 2020-05-12 | I27: Labor | J27: Concrete/Masonry | K27: Labor to build forms and pour foundation. | L27: 60 | M27: CY | N27: 500 | O27: 30000
D28: Foundation | F28: 32 | G28: Footings - Material | H28: 2020-05-12 | I28: Material | J28: Concrete/Masonry | K28: Materials to build forms and pour foundation. | L28: 60 | M28: CY | N28: 500 | O28: 30000
D29: HVAC | F29: 23 | G29: Furnace - Forced Air | H29: 2020-05-12 | I29: Material | J29: HVAC | K29: Furnace - High Efficiency 120,000 BTU | L29: 1 | M29: Ea | N29: 6760 | O29: 6760
D30: Excavating | F30: 26 | G30: Grade Site | H30: 2020-05-12 | I30: Labor | J30: Demolition and Site Work | K30: Prepare Site for Foundation - Includes Equipment | L30: 1 | M30: Ea | N30: 30000 | O30: 30000
D31: Rough Electrical | F31: 11 | G31: Grounding Rod | H31: 2020-05-12 | I31: Material | J31: Electrical | K31: Grounding Rod for House | L31: 1 | M31: Ea | N31: 149.5 | O31: 149.5
D32: Garage | E32: Finish Carpentry | F32: 42 | G32: Install Casing | H32: 2020-05-12 | I32: Labor | J32: Finish Carpentry
D33: Rough Electrical | F33: 10 | G33: Meter Base and Disc. | H33: 2020-05-12 | I33: Material | J33: Electrical | K33: Meter Base and Disconnect | L33: 1 | M33: Ea | N33: 914 | O33: 914
D34: Foundation | F34: 34 | G34: Moisture Protection | H34: 2020-05-12 | I34: Material | J34: Concrete/Masonry | K34: Moisture Barrier Underneath House | L34: 2050 | M34: SF | N34: 0.55 | O34: 1127.5
D35: Garage | E35: Finish Carpentry | F35: 42 | G35: Paint Door Casing | H35: 2020-05-12 | I35: Material | J35: Drywall and Paint | K35: Paint for Door Casing | L35: 32 | M35: LF | N35: 0.25 | O35: 8
D36: Excavating | F36: 27 | G36: Pea Gravel | H36: 2020-05-12 | I36: Material | J36: Demolition and Site Work | K36: Gravel Fill | L36: 10 | M36: CY | N36: 89 | O36: 890
D37: General Conditions | F37: 4 | G37: Residential Supervisor | H37: 2020-05-12 | I37: Labor | J37: General Conditions | K37: Residential Supervisor | L37: 250 | M37: Hr | N37: 88.96 | O37: 22240
D38: Rough Plumbing | F38: 15 | G38: Rough In Plumbing | H38: 2020-05-12 | I38: Labor | J38: Plumbing - Includes septic and well | K38: Rough In Plumbing Residential | L38: 2050 | M38: SF | N38: 5.9 | O38: 12095
D39: Garage | E39: Doors/Windows/Trim | F39: 38 | G39: Seal/Prime and Paint | H39: 2020-05-12 | I39: Material | J39: Drywall and Paint | K39: Primer and Paint | L39: 464 | M39: SF | N39: 0.45 | O39: 208.8
D40: Garage | E40: Walls | F40: 41 | G40: Seal/Prime and Paint | H40: 2020-05-12 | I40: Material | J40: Drywall and Paint | K40: Primer and Paint | L40: 1172 | M40: SF | N40: 0.45 | O40: 527.4
D41: Foundation | F41: 29 | G41: Steel Rebar 5/8" | H41: 2020-05-12 | I41: Material | J41: Concrete/Masonry | K41: Rebar for Foundation | L41: 300 | M41: LF | N41: 2.8 | O41: 840
D42: HVAC | F42: 22 | G42: Thermostat | H42: 2020-05-12 | I42: Material | J42: HVAC | K42: Thermostat Control | L42: 1 | M42: Ea | N42: 115 | O42: 115
D43: Rough Plumbing | E43: Water Heater | F43: 20 | G43: Water Heater | H43: 2020-05-12 | I43: Material | J43: Plumbing - Includes septic and well | K43: Water Heater Tankless - Electrical | L43: 1 | M43: Ea | N43: 2200 | O43: 2200
D44: Rough Plumbing | F44: 16 | G44: Water Meter Upsize | H44: 2020-05-12 | I44: Material | J44: Plumbing - Includes septic and well | K44: Require Water Meter Upsize | L44: 1 | M44: Ea | N44: 3750 | O44: 3750
D45: Rough Plumbing | F45: 18 | G45: Water Softener | H45: 2020-05-12 | I45: Material | J45: Plumbing - Includes septic and well | K45: Water Softener - Electronic Control | L45: 1 | M45: Ea | N45: 1819 | O45: 1819
D46: Rough Electrical | F46: 9 | G46: Wire Residence | H46: 2020-05-12 | I46: Labor | J46: Electrical | K46: Rough Electrical Wiring | L46: 2050 | M46: SF | N46: 6.96 | O46: 14268

Sheet Line Items Template (hidden)
A1: Line Items: | C1: Note: Purpose of this page is to combine material and labor items that you can draw from.
A2: Interior | C2: The idea is if you list items here and are able to combine the material and labor into one item but it still reads separately on the separate reports.
C3: For example: 1/2" drywall requires the drywall panels and the labor to install them.
C4: If I could write the separate items for labor and material on this page and have the user be able to choose one item on the "Interior" sheet that includes both the line items from this page?
C5: The separate material and labor item could populate onto their corresponding report sheets. This page does not need to include pricing, just the line item, category, trade, description and type of quantity.
C6: There are quite a few items especially in the interior of the house that this would make sense for.
C8: How do you determine the allocation of price of labor and material separately? We are back in the realm of Xactimate if we combine elements with supporting costs/etc.
C9: We want to bridge the gap between excel and xactimate, we don't need a million items, but we need it detailed enough, an insurance company would accept it.
C10: this is the database of items to draw from
C12: Item Name: | D12: Date: | E12: Category: | F12: Trade: | G12: Description: | H12: Quantity: | I12: Unit: | J12: Unit Price: | K12: Extended Price:
A14: Mater Line Item: | C14: 1/2" Drywall | E14: Material/Labor | F14: Drywall and Paint
C15: 1/2" Drywall | E15: Labor | F15: Drywall and Paint | G15: Install Drywall | H15: 1 | I15: SF
C16: 1/2" Drywall | E16: Material | F16: Drywall and Paint | G16: 1/2" Drywall Sheets | H16: 1 | I16: SF
